Workbook

Sheet Inputs
A1: This excel sheet uses MACRO's. You will need to enable them before proceeding. Zoom each sheet according to your convenience
A3: Read and complete entries in this column first
A4: Fill only cell in green | D4: The corpus that you enter will divided into 5 buckets, that is different instruments as listed below.
A5: Current monthly expenses | B5: 10000 | D5: Enter the % allocation to each bucket. Bucket 1 represents a fixed income instrument like a FD. So returns will not vary
A6: Time to retirement | B6: 25 | D6: For the other buckets you need to enter an average return and variation from this average (explained below)
A7: inflation prior retirement | B7: 0.08 | D7: The simulator will randomly generate (uncorrelated) returns for each year in retirement based on the input average return and variation
A8: Years in retirement | B8: 25 | D8: Income for first few retirement years will come from bucket 1. This allows enough time for the sum invested in other buckets
A9: inflation post-retirement | B9: 0.08 | D9: to appreciate. You can transfer from buckets 2-5 to bucket 1 if (a) you have made good returns in a year or (b) you don't have
A10: Annual expenses in 1st year of retirement | B10: =B5*12*(1+B7)^(B6+1) -> 887562.3854 | D10: enough funds in bucket 1 to continue. You can transfer sums among buckets 2-5.
A11: Average return for post-retirement investments | B11: 0.08 | D11: Usually it is recommend that one makes a transfer to bucket 1 only if the average compounded rate of return is close to historcial
A12: Total corpus needed to meet expenses | B12: =PV((1+retroi)/(1+rinf)-1,k,-prepen1,,1) -> 22189059.64 | D12: returns (10-15% approx.). Unfortunately inflation in India hovers around 8% and this may not work
A13: Thus while the corpus grows at an average rate you draw | D13: This approach is known as defined withdrawals strategy or the retirement bucket strategy
A14: from it each year accoring to your expenses (indexed to inflation). | D14: The idea of the simulator is to try and prolong the life of the corpus (you chose!) while accouting for inflation-indexed expenses.
A15: This corpus will become zero at the end of retirement period | D15: With intelligent transfers can you beat the standard withdrawal method? If you are not used to equity investing then
A16: This is known as the systematic withdrawals strategy | D16: you will need to try several times! Don't give up. This strategy can make a big difference to your retirement plan
A17: Is there a way to cope with a lower corpus?
A18: Is there a way to make the corpus last longer? | E18: Instrument | F18: Allocation | G18: Fixed Return | H18: This allocation (bucket 1) will approx. last for (years)*
A19: This simulator attempts to see if this is possible* | D19: Bucket 1 | E19: Fixed Income (Bank FD) | F19: 0.45 | G19: 0.05 | H19: =NPER((1+_min1)/(1+rinf)-1,-prepen1,F19*B20,,1) -> 9.031441966
A20: Enter corpus you think will fund your retirement | B20: 20000000 | G20: Average Return | H20: Variation from average return (std. dev.)
A21: If you don't want to use the above amt take a guess | D21: Bucket 2 | E21: Debt Fund | F21: 0.25 | G21: 0.09 | H21: 0.03
A22: Rememeber it would be tough to cope with a much lower corpus | D22: Bucket 3 | E22: Hybrid: Balanced Fund | F22: 0.1 | G22: 0.1 | H22: 0.1
D23: Bucket 4 | E23: Large-cap (stocks/MF) | F23: 0.1 | G23: 0.12 | H23: 0.2
A24: If you are going to receive an annuity ensure the corpus amount you enter | D24: Bucket 5 | E24: Mid-/Small-cap (stocks/MF) | F24: 0.1 | G24: 0.15 | H24: 0.3
A25: above does not include the sum that will be used to provide the annuity | D25: * The idea is to use this time to let the sum in other buckets appreciate AND transfer at oppurtune times into bucket 1. Recommended time 8-10 years.
A26: Enter the annuity or pension you will receive | D26: Important: If the allocation column turns red, ensure the allocations add up to 100% before proceeding
A27: This is constant throughout retirement | B27: 75000 | D27: Note on Variation from average return: Suppose we consider an average of 15% and variation (or standard deviation of 40%)
A28: Enter annual income from other sources during | D28: If we use a so-called normal distribution (the most common in nature) then about 68% of all return will lie centered about the average
A29: 1st year of retirement | B29: 100000 | D29: return. Such returns will range from (15%-20%) to (15% + 20%) or -5% to 35%. Here 20% is half the standard deviation. Lower the
A30: Annual rate of increase of this income | B30: 0.1 | D30: standard deviation lower the volatility. How justified are we in using a normal distribution? It works reasonably with US
D31: market data. However we don't have enough data on Indian markets to see if this is suitable. However given the omnipresence of such
A32: Net annual expenses to be covered from corpus | D32: distributions in nature it is a safe bet as long as we keep in mind real life is more complicated than we can ever imagine!
A33: in the first year of retirement | B33: =(prepen1)-(pension)-(income) -> 712562.3854
A35: Once you have read & completed the entried in this sheet, proceed to the 'instructions' page to learn how to use the the simulator. You could then proceed to the 'Simulator' page
A37: Systemactic withdrawals can be made in two ways: One with fixed average return as mentioned above or it can be made with varying returns from different buckets.
A38: If buckets are used the (weighted) average of returns from each bucket is used. The simulator calculates the total corpus in each year of retirement using all the 3 methods.
A40: * Please remember this is a simulation tool. It presents a series of situations with high volatility in returns to help you understand the factors that affect retirement corpus management. Althought subect to reasonable
A41: assumptions it can never susbtitute for real life scenarios, The take home message is managing a retirement corpus is an active exercise. Passive statergies like relying on annuities or a pension will not work for most!

Sheet Instructions - Simulator sheet
A1: 1. To obtain a fresh set of random returns press this
L2: 2. To advance to the next year press this | T2: 3.For the same interest rate data set click this to redo the exercise!
A5: 4. Before advancing remember to review: (a). balances in each bucket.
A6: (b). compounded annual growth rate (CAGR) of the buckets.
A7: A good thumb rule is to sell if the CAGR is close to or above
A8: the average rate of each bucket you have entered in the 'Inputs' sheet
A20: 6.In the screenshot 21 is the current year. However bucket 1 has funds only
A21: up to year 20. So you cannot proceed unless you transfer funds into bucket 1
A22: If funds are not available its game over!
A24: 7. The annual corpus obtained by three stratergies are plotted here to
A25: evaluate the progress of the bucket statergy
A26: To accommodate the plot only the last years in the table will be displayed

Sheet Simulator
AO1: =IF(Inputs!F19+Inputs!F21+Inputs!F22+Inputs!F23+Inputs!F24=100%,1,0) -> 1
E3: Compound Annual Growth Rate | O3: Current Year | Q3: =MAX(AQ12:AQ111) -> 0 | AN3: 14 | AO3: =SUM(AQ12:AQ111) -> 0
E4: Bucket 1 | F4: Bucket 2 | H4: Bucket 3 | J4: Bucket 4 | M4: Bucket 5 | O4: Bucket 1 can support expenses up to year | S4: =SUM(AN12:AN1111)-1 -> 9 | U4: If cells in the 'transfers' coumns turn red it means you are trying to transfer
E5: =_min1 -> 0.05 | O5: To continue transfer | Q5: =SUM(AM12:AM111) -> 4.818063745 | R5: lakhs to bucket 1 | U5: more than the available balance. Decrease amt until the 'red' goes away | AO5: 10
D6: Random Annual Returns | O6: BALANCES (Lakhs) | U6: TRANSFERS (Lakhs) | AO6: Show
B7: Net annual | E7: Bucket 1 | F7: Bucket 2 | H7: Bucket 3 | J7: Bucket 4 | M7: Bucket 5 | O7: Bucket 1 | P7: Bucket 2 | Q7: Bucket 3 | R7: Bucket 4 | S7: Bucket 5 | U7: Bucket 2 | W7: Bucket 3 | Y7: Bucket 4 | AA7: Bucket 5 | AO7: Hide
B8: expenses | E8: Fixed | F8: Debt Fund | H8: Hybrid | J8: Large-cap | M8: Mid/Small | O8: Fixed | P8: Debt Fund | Q8: Hybrid | R8: Large-cap | S8: Mid/Small | U8: Debt Fund | W8: Hybrid | Y8: Large-cap | AA8: Mid/Small Cap
B9: that will be | E9: (eg. FDs) | H9: Bal. Fund | J9: Stocks/MF | M9: Stocks/MF | O9: (eg. FDs) | Q9: Bal. Fund | R9: Stocks/MF | S9: Stocks/MF | W9: Balanced Fund | Y9: Stocks/MF | AA9: Stocks/MF | AO9: Bucket 2
B10: covered | E10: Income | M10: Cap | O10: Income | S10: Cap | U10: Transfers to | W10: Transfers to | Y10: Transfers to | AA10: Transfers to | AD10: Year | AO10: Bucket 3 | AR10: Bucket | AS10: sys wit | AT10: sys wit | AV10: B2 | AX10: B3 | AZ10: B4 | BB10: B5
A11: Year | B11: by corpus | U11: Bucket 1 | V11: Bucket 3 | W11: Bucket 1 | X11: Bucket 2 | Y11: Bucket 1 | Z11: Bucket 2 | AA11: Bucket 1 | AB11: Bucket 2 | AD11: Year | AO11: Bucket 4 | AR11: strategy | AS11: avg ret | AT11: rand ret | AW11: CAGR | AY11: CAGR | BA11: CAGR | BC11: CAGR
A12: 0 | B12: =(prepen1*(1+rinf)^A12/100000)-(pension/100000)-(income*(1+incrate)^A12/100000) -> 7.125623854 | O12: =ROUND(Inputs!F19*Inputs!B20,0)/100000 -> 90 | P12: =ROUND(Inputs!F21*Inputs!B20,0)/100000 -> 50 | Q12: =ROUND(Inputs!B20*Inputs!F22,0)/100000 -> 20 | R12: =ROUND(Inputs!B20*Inputs!F23,0)/100000 -> 20 | S12: =ROUND(Inputs!F24*Inputs!B20,0)/100000 -> 20 | AD12: 0 | AO12: Bucket 5 | AR12: =Inputs!B20/100000 -> 200 | AS12: =(Inputs!B12-prepen1)/100000 -> 213.0149725 | AT12: =Inputs!B20/100000 -> 200 | AV12: 1 | AX12: 1 | AZ12: 1 | BB12: 1
A13: =A12+1 -> 1 | B13: 7.735673763 | D13: =IF(E13<>"",E13,_min1) -> 0.05 | E13: 0.05 | F13: 0.1197423284 | G13: =IF(F13<>"",F13,NORMINV(RAND(),mean2,stdev2)) -> 0.1197423284 | H13: 0.1413974064 | I13: =IF(H13<>"",H13,NORMINV(RAND(),mean3,stdev3)) -> 0.1413974064 | J13: 0.1438745832 | K13: =IF(J13<>"",J13,NORMINV(RAND(),mean4,stdev4)) -> 0.1438745832 | L13: =IF(M13<>"",M13,NORMINV(RAND(),mean5,stdev5)) -> 0.707610635 | M13: 0.707610635 | O13: =IF(O12="no funds","no funds",IF((O12-B12+U12+W12+Y12+AA12)*(1+D13)<0,"no funds",ROUND((O12-B12+U12+W12+Y12+AA12)*(1+D13),0))) -> 87 | P13: =ROUND((P12-U12-V12+IF(trans3="bucket 2",X12)+IF(trans4="bucket 2",Z12)+IF(trans5="bucket 2",AB12))*(1+F13),0) -> 56 | Q13: =ROUND((Q12-W12-X12+IF(trans2="bucket 3",V12)+IF(trans4="bucket 3",Z12)+IF(trans5="bucket 3",AB12))*(1+H13),0) -> 23 | R13: =ROUND((R12-Y12-Z12+IF(trans2="bucket 4",V12)+IF(trans3="bucket 4",X12)+IF(trans5="bucket 4",AB12))*(1+J13),0) -> 23 | S13: =ROUND((S12-AA12-AB12+IF(trans2="bucket 5",V12)+IF(trans3="bucket 5",X12)+IF(trans4="bucket 5",Z12))*(1+M13),0) -> 34 | AD13: =AD12+1 -> 1 | AM13: =IF($O13<$B13,$B13-$O13,0) -> 0 | AN13: =IF($O13<$B13,AD13,0) -> 0 | AR13: =IF(AQ13<>0,IF(SUM(O13:S13)<0,NA(),SUM(O13:S13)),NA()) ->  | AS13: =IF(AQ13<>0,IF(AS12*(1+retroi)-(prepen1/100000)*(1+rinf)^AQ13<0,NA(),AS12*(1+retroi)-(prepen1/100000)*(1+rinf)^AQ13),NA()) ->  | AT13: =IF(AQ13<>0,IF((AT12-B12)*(1+alloc1*Simulator!E13+alloc2*Simulator!F13+alloc3*Simulator!H13+alloc4*Simulator!J13+alloc5*Simulator!M13)<0,NA(),(AT12-B12)*(1+alloc1*Simulator!E13+alloc2*Simulator!F13+alloc3*Simulator!H13+alloc4*Simulator!J13+alloc5*Simulator!M13)),NA()) ->  | AV13: =AV12*(1+F13) -> 1.119742328 | AW13: =(AV13/$AV$12)^(1/AQ13)-1 ->  | AX13: =AX12*(1+H13) -> 1.141397406 | AY13: =(AX13/$AX$12)^(1/AQ13)-1 ->  | AZ13: =AZ12*(1+J13) -> 1.143874583 | BA13: =(AZ13/$AZ$12)^(1/AQ13)-1 ->  | BB13: =BB12*(1+M13) -> 1.707610635 | BC13: =(BB13/$BB$12)^(1/AQ13)-1 -> 
A14: 2 | B14: 8.392527664 | D14: 0.05 | E14: 0.05 | F14: 0.09294718068 | G14: 0.09294718068 | H14: 0.1942319001 | I14: 0.1942319001 | J14: 0.1703635816 | K14: 0.1703635816 | L14: -0.03123129118 | M14: -0.03123129118 | O14: =IF(O13="no funds","no funds",IF((O13-B13+U13+W13+Y13+AA13)*(1+D14)<0,"no funds",ROUND((O13-B13+U13+W13+Y13+AA13)*(1+D14),0))) -> 83 | P14: 61 | Q14: 27 | R14: 27 | S14: 33 | AD14: 2 | AM14: =IF($O14<$B14,$B14-$O14,0) -> 0 | AN14: =IF($O14<$B14,AD14,0) -> 0 | AR14: =IF(AQ14<>0,IF(SUM(O14:S14)<0,NA(),SUM(O14:S14)),NA()) ->  | AT14: =IF(AQ14<>0,IF((AT13-B13)*(1+alloc1*Simulator!E14+alloc2*Simulator!F14+alloc3*Simulator!H14+alloc4*Simulator!J14+alloc5*Simulator!M14)<0,NA(),(AT13-B13)*(1+alloc1*Simulator!E14+alloc2*Simulator!F14+alloc3*Simulator!H14+alloc4*Simulator!J14+alloc5*Simulator!M14)),NA()) ->  | AV14: =AV13*(1+F14) -> 1.223819221 | AX14: =AX13*(1+H14) -> 1.363093193 | AY14: =(AX14/$AX$12)^(1/AQ14)-1 ->  | AZ14: =AZ13*(1+J14) -> 1.338749154 | BA14: =(AZ14/$AZ$12)^(1/AQ14)-1 ->  | BB14: =BB13*(1+M14) -> 1.65427975 | BC14: =(BB14/$BB$12)^(1/AQ14)-1 -> 
A15: 3 | B15: 9.099729877 | D15: 0.05 | E15: 0.05 | F15: 0.05681267897 | G15: 0.05681267897 | H15: 0.1011418244 | I15: 0.1011418244 | J15: 0.1060307331 | K15: 0.1060307331 | L15: -0.2217607995 | M15: -0.2217607995 | O15: 78 | P15: 64 | Q15: 30 | R15: 30 | S15: 26 | AD15: 3 | AM15: 0 | AN15: 0 | AO15: Bucket 2 | AT15: =IF(AQ15<>0,IF((AT14-B14)*(1+alloc1*Simulator!E15+alloc2*Simulator!F15+alloc3*Simulator!H15+alloc4*Simulator!J15+alloc5*Simulator!M15)<0,NA(),(AT14-B14)*(1+alloc1*Simulator!E15+alloc2*Simulator!F15+alloc3*Simulator!H15+alloc4*Simulator!J15+alloc5*Simulator!M15)),NA()) ->  | AV15: 1.293347669 | AX15: 1.500958926 | AZ15: 1.480697708 | BB15: 1.28742535
A16: 4 | B16: 9.861088267 | D16: 0.05 | E16: 0.05 | F16: 0.13784381 | G16: 0.13784381 | H16: 0.1515836746 | I16: 0.1515836746 | J16: -0.2061405771 | K16: -0.2061405771 | L16: 0.3550411534 | M16: 0.3550411534 | O16: 72 | P16: 73 | Q16: 35 | R16: 24 | S16: 35 | AD16: 4 | AM16: 0 | AN16: 0 | AO16: Bucket 4 | AT16: =IF(AQ16<>0,IF((AT15-B15)*(1+alloc1*Simulator!E16+alloc2*Simulator!F16+alloc3*Simulator!H16+alloc4*Simulator!J16+alloc5*Simulator!M16)<0,NA(),(AT15-B15)*(1+alloc1*Simulator!E16+alloc2*Simulator!F16+alloc3*Simulator!H16+alloc4*Simulator!J16+alloc5*Simulator!M16)),NA()) ->  | AV16: 1.47162764 | AX16: 1.728479795 | AZ16: 1.175465828 | BB16: 1.744514331
A17: 5 | B17: 10.68069333 | D17: 0.05 | E17: 0.05 | F17: 0.05754004181 | G17: 0.05754004181 | H17: 0.08960432383 | I17: 0.08960432383 | J17: -0.202755214 | K17: -0.202755214 | L17: -0.4065874967 | M17: -0.4065874967 | O17: 65 | P17: 77 | Q17: 38 | R17: 19 | S17: 21 | AD17: 5 | AM17: 0 | AN17: 0 | AO17: Bucket 5 | AT17: =IF(AQ17<>0,IF((AT16-B16)*(1+alloc1*Simulator!E17+alloc2*Simulator!F17+alloc3*Simulator!H17+alloc4*Simulator!J17+alloc5*Simulator!M17)<0,NA(),(AT16-B16)*(1+alloc1*Simulator!E17+alloc2*Simulator!F17+alloc3*Simulator!H17+alloc4*Simulator!J17+alloc5*Simulator!M17)),NA()) ->  | AV17: 1.556305156 | AX17: 1.883359059 | AZ17: 0.9371340028 | BB17: 1.035216616
A18: 6 | B18: 11.56293859 | D18: 0.05 | E18: 0.05 | F18: 0.07784150523 | G18: 0.07784150523 | H18: 0.08393024304 | I18: 0.08393024304 | J18: 0.4029115517 | K18: 0.4029115517 | L18: 0.3257767679 | M18: 0.3257767679 | O18: 57 | P18: 83 | Q18: 41 | R18: 27 | S18: 28 | AD18: 6 | AM18: 0 | AN18: 0 | AT18: =IF(AQ18<>0,IF((AT17-B17)*(1+alloc1*Simulator!E18+alloc2*Simulator!F18+alloc3*Simulator!H18+alloc4*Simulator!J18+alloc5*Simulator!M18)<0,NA(),(AT17-B17)*(1+alloc1*Simulator!E18+alloc2*Simulator!F18+alloc3*Simulator!H18+alloc4*Simulator!J18+alloc5*Simulator!M18)),NA()) ->  | AV18: 1.677450292 | AX18: 2.041429842 | AZ18: 1.314716118 | BB18: 1.37246614
A19: 7 | B19: 12.51254246 | D19: 0.05 | E19: 0.05 | F19: 0.09923829689 | G19: 0.09923829689 | H19: 0.2121269247 | I19: 0.2121269247 | J19: 0.05074483667 | K19: 0.05074483667 | L19: 0.1957436279 | M19: 0.1957436279 | O19: 48 | P19: 91 | Q19: 50 | R19: 28 | S19: 33 | AD19: 7 | AM19: 0 | AN19: 0 | AO19: Bucket 2 | AT19: =IF(AQ19<>0,IF((AT18-B18)*(1+alloc1*Simulator!E19+alloc2*Simulator!F19+alloc3*Simulator!H19+alloc4*Simulator!J19+alloc5*Simulator!M19)<0,NA(),(AT18-B18)*(1+alloc1*Simulator!E19+alloc2*Simulator!F19+alloc3*Simulator!H19+alloc4*Simulator!J19+alloc5*Simulator!M19)),NA()) ->  | AV19: 1.843917602 | AX19: 2.474472077 | AZ19: 1.381431173 | BB19: 1.641117641
A20: 8 | B20: 13.53457152 | D20: 0.05 | E20: 0.05 | F20: 0.1145617396 | G20: 0.1145617396 | H20: 0.1917910169 | I20: 0.1917910169 | J20: -0.03463723276 | K20: -0.03463723276 | L20: 0.3877463033 | M20: 0.3877463033 | O20: 37 | P20: 101 | Q20: 60 | R20: 27 | S20: 46 | AD20: 8 | AM20: 0 | AN20: 0 | AO20: Bucket 3 | AR20: =IF(AQ20=SUM(AN7:AN1106),NA(),IF(AQ20<>0,IF(SUM(O20:S20)<0,NA(),SUM(O20:S20)),NA())) ->  | AS20: =IF(AQ20=SUM(AN7:AN1106),NA(),IF(AQ20<>0,IF(AS19*(1+retroi)-(prepen1/100000)*(1+rinf)^AQ20<0,NA(),AS19*(1+retroi)-(prepen1/100000)*(1+rinf)^AQ20),NA())) ->  | AT20: =IF(AQ20=SUM(AN7:AN1106),NA(),IF(AQ20<>0,IF((AT19-B19)*(1+alloc1*Simulator!E20+alloc2*Simulator!F20+alloc3*Simulator!H20+alloc4*Simulator!J20+alloc5*Simulator!M20)<0,NA(),(AT19-B19)*(1+alloc1*Simulator!E20+alloc2*Simulator!F20+alloc3*Simulator!H20+alloc4*Simulator!J20+alloc5*Simulator!M20)),NA())) ->  | AV20: 2.05516001 | AX20: 2.949053593 | AZ20: 1.33358222 | BB20: 2.27745494
A21: 9 | B21: 14.63446546 | D21: 0.05 | E21: 0.05 | F21: 0.1047467902 | G21: 0.1047467902 | H21: 0.1680927964 | I21: 0.1680927964 | J21: 0.1618151283 | K21: 0.1618151283 | L21: 0.2418848846 | M21: 0.2418848846 | O21: 25 | P21: 112 | Q21: 70 | R21: 31 | S21: 57 | AD21: 9 | AM21: 0 | AN21: 0 | AO21: Bucket 5 | AT21: =IF(AQ21=SUM(AN8:AN1107),NA(),IF(AQ21<>0,IF((AT20-B20)*(1+alloc1*Simulator!E21+alloc2*Simulator!F21+alloc3*Simulator!H21+alloc4*Simulator!J21+alloc5*Simulator!M21)<0,NA(),(AT20-B20)*(1+alloc1*Simulator!E21+alloc2*Simulator!F21+alloc3*Simulator!H21+alloc4*Simulator!J21+alloc5*Simulator!M21)),NA())) ->  | AV21: 2.270431424 | AX21: 3.444768258 | AZ21: 1.549375998 | BB21: 2.828336865
A22: 10 | B22: 15.81806375 | D22: 0.05 | E22: 0.05 | F22: 0.04327345715 | G22: 0.04327345715 | H22: 0.113915667 | I22: 0.113915667 | J22: -0.02418081234 | K22: -0.02418081234 | L22: 0.5463449532 | M22: 0.5463449532 | O22: 11 | P22: 117 | Q22: 78 | R22: 30 | S22: 88 | AD22: 10 | AM22: 4.818063745 | AN22: 10 | AT22: =IF(AQ22=SUM(AN9:AN1108),NA(),IF(AQ22<>0,IF((AT21-B21)*(1+alloc1*Simulator!E22+alloc2*Simulator!F22+alloc3*Simulator!H22+alloc4*Simulator!J22+alloc5*Simulator!M22)<0,NA(),(AT21-B21)*(1+alloc1*Simulator!E22+alloc2*Simulator!F22+alloc3*Simulator!H22+alloc4*Simulator!J22+alloc5*Simulator!M22)),NA())) ->  | AV22: 2.368680841 | AX22: 3.837181331 | AZ22: 1.511910827 | BB22: 4.373584438
A23: 11 | B23: 17.091634 | D23: 0.05 | E23: 0.05 | F23: 0.1043165528 | G23: 0.1043165528 | H23: 0.2331759896 | I23: 0.2331759896 | J23: 0.1327783039 | K23: 0.1327783039 | L23: 0.5077121058 | M23: 0.5077121058 | O23: no funds | P23: 129 | Q23: 96 | R23: 34 | S23: 133 | AD23: 11 | AM23: 0 | AN23: 0 | AT23: =IF(AQ23=SUM(AN10:AN1109),NA(),IF(AQ23<>0,IF((AT22-B22)*(1+alloc1*Simulator!E23+alloc2*Simulator!F23+alloc3*Simulator!H23+alloc4*Simulator!J23+alloc5*Simulator!M23)<0,NA(),(AT22-B22)*(1+alloc1*Simulator!E23+alloc2*Simulator!F23+alloc3*Simulator!H23+alloc4*Simulator!J23+alloc5*Simulator!M23)),NA())) ->  | AV23: 2.615773461 | AX23: 4.731919885 | AZ23: 1.712659783 | BB23: 6.594106203
A24: 12 | B24: 18.46190238 | D24: 0.05 | E24: 0.05 | F24: 0.1008872869 | G24: 0.1008872869 | H24: 0.212057884 | I24: 0.212057884 | J24: -0.1023580745 | K24: -0.1023580745 | L24: -0.3694028503 | M24: -0.3694028503 | O24: no funds | P24: 142 | Q24: 116 | R24: 31 | S24: 84 | AD24: 12 | AM24: 0 | AN24: 0 | AT24: =IF(AQ24=SUM(AN11:AN1110),NA(),IF(AQ24<>0,IF((AT23-B23)*(1+alloc1*Simulator!E24+alloc2*Simulator!F24+alloc3*Simulator!H24+alloc4*Simulator!J24+alloc5*Simulator!M24)<0,NA(),(AT23-B23)*(1+alloc1*Simulator!E24+alloc2*Simulator!F24+alloc3*Simulator!H24+alloc4*Simulator!J24+alloc5*Simulator!M24)),NA())) ->  | AV24: 2.879671749 | AX24: 5.735360804 | AZ24: 1.537355225 | BB24: 4.158224576
A25: 13 | B25: 19.936086 | D25: 0.05 | E25: 0.05 | F25: 0.0712065304 | G25: 0.0712065304 | H25: 0.05389209613 | I25: 0.05389209613 | J25: 0.0101188125 | K25: 0.0101188125 | L25: 0.2450995168 | M25: 0.2450995168 | O25: no funds | P25: 152 | Q25: 122 | R25: 31 | S25: 105 | AD25: 13 | AM25: 0 | AN25: 0 | AT25: =IF(AQ25=SUM(AN12:AN1111),NA(),IF(AQ25<>0,IF((AT24-B24)*(1+alloc1*Simulator!E25+alloc2*Simulator!F25+alloc3*Simulator!H25+alloc4*Simulator!J25+alloc5*Simulator!M25)<0,NA(),(AT24-B24)*(1+alloc1*Simulator!E25+alloc2*Simulator!F25+alloc3*Simulator!H25+alloc4*Simulator!J25+alloc5*Simulator!M25)),NA())) ->  | AV25: 3.084723183 | AX25: 6.044451419 | AZ25: 1.552911434 | BB25: 5.17740341
A26: 14 | B26: 21.52192746 | D26: 0.05 | E26: 0.05 | F26: 0.07944764782 | G26: 0.07944764782 | H26: 0.002120305115 | I26: 0.002120305115 | J26: 0.1834168601 | K26: 0.1834168601 | L26: -0.317393207 | M26: -0.317393207 | O26: no funds | P26: 164 | Q26: 122 | R26: 37 | S26: 72 | AD26: 14 | AM26: 0 | AN26: 0 | AR26: =IF(AQ26=SUM(AN13:AN1112),NA(),IF(AQ26<>0,IF(SUM(O26:S26)<0,NA(),SUM(O26:S26)),NA())) ->  | AT26: =IF(AQ26=SUM(AN13:AN1112),NA(),IF(AQ26<>0,IF((AT25-B25)*(1+alloc1*Simulator!E26+alloc2*Simulator!F26+alloc3*Simulator!H26+alloc4*Simulator!J26+alloc5*Simulator!M26)<0,NA(),(AT25-B25)*(1+alloc1*Simulator!E26+alloc2*Simulator!F26+alloc3*Simulator!H26+alloc4*Simulator!J26+alloc5*Simulator!M26)),NA())) ->  | AV26: 3.329797184 | AX26: 6.057267501 | AZ26: 1.837741574 | BB26: 3.534130738
A27: 15 | B27: 23.22773169 | D27: 0.05 | E27: 0.05 | F27: 0.1599930945 | G27: 0.1599930945 | H27: 0.007531236968 | I27: 0.007531236968 | J27: 0.2898991328 | K27: 0.2898991328 | L27: -0.1366019239 | M27: -0.1366019239 | O27: no funds | P27: 190 | Q27: 123 | R27: 48 | S27: 62 | AD27: 15 | AM27: 0 | AN27: 0 | AT27: =IF(AQ27=SUM(AN14:AN1113),NA(),IF(AQ27<>0,IF((AT26-B26)*(1+alloc1*Simulator!E27+alloc2*Simulator!F27+alloc3*Simulator!H27+alloc4*Simulator!J27+alloc5*Simulator!M27)<0,NA(),(AT26-B26)*(1+alloc1*Simulator!E27+alloc2*Simulator!F27+alloc3*Simulator!H27+alloc4*Simulator!J27+alloc5*Simulator!M27)),NA())) ->  | AV27: 3.862541739 | AX27: 6.102886218 | AZ27: 2.370501262 | BB27: 3.05136168
A28: 16 | B28: 25.06240526 | D28: 0.05 | E28: 0.05 | F28: 0.09270171025 | G28: 0.09270171025 | H28: -0.1175427107 | I28: -0.1175427107 | J28: 0.2307709436 | K28: 0.2307709436 | L28: -0.2350987236 | M28: -0.2350987236 | O28: no funds | P28: 208 | Q28: 109 | R28: 59 | S28: 47 | AD28: 16 | AM28: 0 | AN28: 0 | AT28: =IF(AQ28=SUM(AN15:AN1114),NA(),IF(AQ28<>0,IF((AT27-B27)*(1+alloc1*Simulator!E28+alloc2*Simulator!F28+alloc3*Simulator!H28+alloc4*Simulator!J28+alloc5*Simulator!M28)<0,NA(),(AT27-B27)*(1+alloc1*Simulator!E28+alloc2*Simulator!F28+alloc3*Simulator!H28+alloc4*Simulator!J28+alloc5*Simulator!M28)),NA())) ->  | AV28: 4.220605964 | AX28: 5.385536428 | AZ28: 2.917544075 | BB28: 2.333990444
A29: 17 | B29: 27.03549822 | D29: 0.05 | E29: 0.05 | F29: 0.114115397 | G29: 0.114115397 | H29: 0.09592278726 | I29: 0.09592278726 | J29: -0.1491353093 | K29: -0.1491353093 | L29: -0.1444859119 | M29: -0.1444859119 | O29: no funds | P29: 232 | Q29: 119 | R29: 50 | S29: 40 | AD29: 17 | AM29: 0 | AN29: 0 | AT29: =IF(AQ29=SUM(AN16:AN1115),NA(),IF(AQ29<>0,IF((AT28-B28)*(1+alloc1*Simulator!E29+alloc2*Simulator!F29+alloc3*Simulator!H29+alloc4*Simulator!J29+alloc5*Simulator!M29)<0,NA(),(AT28-B28)*(1+alloc1*Simulator!E29+alloc2*Simulator!F29+alloc3*Simulator!H29+alloc4*Simulator!J29+alloc5*Simulator!M29)),NA())) ->  | AV29: 4.702242089 | AX29: 5.902132094 | AZ29: 2.482435237 | BB29: 1.996761706
A30: 18 | B30: 29.15724868 | D30: 0.05 | E30: 0.05 | F30: 0.06358558282 | G30: 0.06358558282 | H30: 0.03984398378 | I30: 0.03984398378 | J30: 0.1502034837 | K30: 0.1502034837 | L30: 0.385950093 | M30: 0.385950093 | O30: no funds | P30: 247 | Q30: 124 | R30: 58 | S30: 55 | AD30: 18 | AM30: 0 | AN30: 0 | AT30: =IF(AQ30=SUM(AN17:AN1116),NA(),IF(AQ30<>0,IF((AT29-B29)*(1+alloc1*Simulator!E30+alloc2*Simulator!F30+alloc3*Simulator!H30+alloc4*Simulator!J30+alloc5*Simulator!M30)<0,NA(),(AT29-B29)*(1+alloc1*Simulator!E30+alloc2*Simulator!F30+alloc3*Simulator!H30+alloc4*Simulator!J30+alloc5*Simulator!M30)),NA())) ->  | AV30: 5.001236893 | AX30: 6.137296549 | AZ30: 2.855305658 | BB30: 2.767412072
A31: 19 | B31: 31.43863022 | D31: 0.05 | E31: 0.05 | F31: 0.102133429 | G31: 0.102133429 | H31: -0.02870101417 | I31: -0.02870101417 | J31: 0.3167919202 | K31: 0.3167919202 | L31: 0.3353384282 | M31: 0.3353384282 | O31: no funds | P31: 272 | Q31: 120 | R31: 76 | S31: 73 | AD31: 19 | AM31: 0 | AN31: 0 | AT31: =IF(AQ31=SUM(AN18:AN1117),NA(),IF(AQ31<>0,IF((AT30-B30)*(1+alloc1*Simulator!E31+alloc2*Simulator!F31+alloc3*Simulator!H31+alloc4*Simulator!J31+alloc5*Simulator!M31)<0,NA(),(AT30-B30)*(1+alloc1*Simulator!E31+alloc2*Simulator!F31+alloc3*Simulator!H31+alloc4*Simulator!J31+alloc5*Simulator!M31)),NA())) ->  | AV31: 5.512030366 | AX31: 5.961149914 | AZ31: 3.75984342 | BB31: 3.695431687
A32: 20 | B32: 33.89140246 | D32: 0.05 | E32: 0.05 | F32: 0.05121421827 | G32: 0.05121421827 | H32: 0.09043874806 | I32: 0.09043874806 | J32: 0.2845272361 | K32: 0.2845272361 | L32: 0.1241117351 | M32: 0.1241117351 | O32: no funds | P32: 286 | Q32: 131 | R32: 98 | S32: 82 | AD32: 20 | AM32: 0 | AN32: 0 | AT32: =IF(AQ32=SUM(AN19:AN1118),NA(),IF(AQ32<>0,IF((AT31-B31)*(1+alloc1*Simulator!E32+alloc2*Simulator!F32+alloc3*Simulator!H32+alloc4*Simulator!J32+alloc5*Simulator!M32)<0,NA(),(AT31-B31)*(1+alloc1*Simulator!E32+alloc2*Simulator!F32+alloc3*Simulator!H32+alloc4*Simulator!J32+alloc5*Simulator!M32)),NA())) ->  | AV32: 5.794324693 | AX32: 6.500268849 | AZ32: 4.829621276 | BB32: 4.154078125
A33: 21 | B33: 36.52816466 | D33: 0.05 | E33: 0.05 | F33: 0.1013380442 | G33: 0.1013380442 | H33: -0.1096606072 | I33: -0.1096606072 | J33: 0.1274042234 | K33: 0.1274042234 | L33: 0.1337462334 | M33: 0.1337462334 | O33: no funds | P33: 315 | Q33: 117 | R33: 110 | S33: 93 | AD33: 21 | AM33: 0 | AN33: 0 | AT33: =IF(AQ33=SUM(AN20:AN1119),NA(),IF(AQ33<>0,IF((AT32-B32)*(1+alloc1*Simulator!E33+alloc2*Simulator!F33+alloc3*Simulator!H33+alloc4*Simulator!J33+alloc5*Simulator!M33)<0,NA(),(AT32-B32)*(1+alloc1*Simulator!E33+alloc2*Simulator!F33+alloc3*Simulator!H33+alloc4*Simulator!J33+alloc5*Simulator!M33)),NA())) ->  | AV33: 6.381510224 | AX33: 5.78744542 | AZ33: 5.444935424 | BB33: 4.709670428
A34: 22 | B34: 39.36241283 | D34: 0.05 | E34: 0.05 | F34: 0.1002016795 | G34: 0.1002016795 | H34: -0.06505775566 | I34: -0.06505775566 | J34: 0.1230489199 | K34: 0.1230489199 | L34: -0.7232169532 | M34: -0.7232169532 | O34: no funds | P34: 347 | Q34: 109 | R34: 124 | S34: 26 | AD34: 22 | AM34: 0 | AN34: 0 | AT34: =IF(AQ34=SUM(AN21:AN1120),NA(),IF(AQ34<>0,IF((AT33-B33)*(1+alloc1*Simulator!E34+alloc2*Simulator!F34+alloc3*Simulator!H34+alloc4*Simulator!J34+alloc5*Simulator!M34)<0,NA(),(AT33-B33)*(1+alloc1*Simulator!E34+alloc2*Simulator!F34+alloc3*Simulator!H34+alloc4*Simulator!J34+alloc5*Simulator!M34)),NA())) ->  | AV34: 7.020948267 | AX34: 5.41092721 | AZ34: 6.114928847 | BB34: 1.303556931
A35: 23 | B35: 42.40860036 | D35: 0.05 | E35: 0.05 | F35: 0.1194986904 | G35: 0.1194986904 | H35: 0.09953017965 | I35: 0.09953017965 | J35: 0.1049077154 | K35: 0.1049077154 | L35: 0.1370791952 | M35: 0.1370791952 | O35: no funds | P35: 388 | Q35: 120 | R35: 137 | S35: 30 | AD35: 23 | AM35: 0 | AN35: 0 | AT35: =IF(AQ35=SUM(AN22:AN1121),NA(),IF(AQ35<>0,IF((AT34-B34)*(1+alloc1*Simulator!E35+alloc2*Simulator!F35+alloc3*Simulator!H35+alloc4*Simulator!J35+alloc5*Simulator!M35)<0,NA(),(AT34-B34)*(1+alloc1*Simulator!E35+alloc2*Simulator!F35+alloc3*Simulator!H35+alloc4*Simulator!J35+alloc5*Simulator!M35)),NA())) ->  | AV35: 7.85994239 | AX35: 5.949477767 | AZ35: 6.756432062 | BB35: 1.482247466
A36: 24 | B36: 45.68220234 | D36: 0.05 | E36: 0.05 | F36: 0.1042749062 | G36: 0.1042749062 | H36: 0.1375062774 | I36: 0.1375062774 | J36: 0.7794827307 | K36: 0.7794827307 | L36: -0.2862527659 | M36: -0.2862527659 | O36: no funds | P36: 428 | Q36: 137 | R36: 244 | S36: 21 | AD36: 24 | AM36: 0 | AN36: 0 | AT36: =IF(AQ36=SUM(AN23:AN1122),NA(),IF(AQ36<>0,IF((AT35-B35)*(1+alloc1*Simulator!E36+alloc2*Simulator!F36+alloc3*Simulator!H36+alloc4*Simulator!J36+alloc5*Simulator!M36)<0,NA(),(AT35-B35)*(1+alloc1*Simulator!E36+alloc2*Simulator!F36+alloc3*Simulator!H36+alloc4*Simulator!J36+alloc5*Simulator!M36)),NA())) ->  | AV36: 8.679537145 | AX36: 6.767568307 | AZ36: 12.02295418 | BB36: 1.057950029
A37: 25 | B37: 49.19978387 | D37: 0.05 | E37: 0.05 | F37: 0.07196155683 | G37: 0.07196155683 | H37: 0.01227587313 | I37: 0.01227587313 | J37: 0.07056513686 | K37: 0.07056513686 | L37: 0.1091900162 | M37: 0.1091900162 | O37: no funds | P37: 459 | Q37: 139 | R37: 261 | S37: 23 | AD37: 25 | AM37: 0 | AN37: 0 | AT37: =IF(AQ37=SUM(AN24:AN1123),NA(),IF(AQ37<>0,IF((AT36-B36)*(1+alloc1*Simulator!E37+alloc2*Simulator!F37+alloc3*Simulator!H37+alloc4*Simulator!J37+alloc5*Simulator!M37)<0,NA(),(AT36-B36)*(1+alloc1*Simulator!E37+alloc2*Simulator!F37+alloc3*Simulator!H37+alloc4*Simulator!J37+alloc5*Simulator!M37)),NA())) ->  | AV37: 9.304130151 | AX37: 6.850646117 | AZ37: 12.87135558 | BB37: 1.17346761
A38: 26 | B38: 52.97907246 | D38: 0.05 | E38: 0.05 | F38: 0.07290955037 | G38: 0.07290955037 | H38: 0.1247017106 | I38: 0.1247017106 | J38: 0.03985246869 | K38: 0.03985246869 | L38: 0.1969624259 | M38: 0.1969624259 | O38: no funds | P38: 492 | Q38: 156 | R38: 271 | S38: 28 | AD38: 26 | AM38: 0 | AN38: 0 | AT38: =IF(AQ38=SUM(AN25:AN1124),NA(),IF(AQ38<>0,IF((AT37-B37)*(1+alloc1*Simulator!E38+alloc2*Simulator!F38+alloc3*Simulator!H38+alloc4*Simulator!J38+alloc5*Simulator!M38)<0,NA(),(AT37-B37)*(1+alloc1*Simulator!E38+alloc2*Simulator!F38+alloc3*Simulator!H38+alloc4*Simulator!J38+alloc5*Simulator!M38)),NA())) ->  | AV38: 9.982490097 | AX38: 7.704933407 | AZ38: 13.38431088 | BB38: 1.404596637
A39: 27 | B39: 57.03903473 | D39: 0.05 | E39: 0.05 | F39: 0.03797009458 | G39: 0.03797009458 | H39: 0.1583308027 | I39: 0.1583308027 | J39: 0.1650653809 | K39: 0.1650653809 | L39: -0.2121220742 | M39: -0.2121220742 | O39: no funds | P39: 511 | Q39: 181 | R39: 316 | S39: 22 | AD39: 27 | AM39: 0 | AN39: 0 | AT39: =IF(AQ39=SUM(AN26:AN1125),NA(),IF(AQ39<>0,IF((AT38-B38)*(1+alloc1*Simulator!E39+alloc2*Simulator!F39+alloc3*Simulator!H39+alloc4*Simulator!J39+alloc5*Simulator!M39)<0,NA(),(AT38-B38)*(1+alloc1*Simulator!E39+alloc2*Simulator!F39+alloc3*Simulator!H39+alloc4*Simulator!J39+alloc5*Simulator!M39)),NA())) ->  | AV39: 10.36152619 | AX39: 8.924861698 | AZ39: 15.59359725 | BB39: 1.106650685
A40: 28 | B40: 61.39995763 | D40: 0.05 | E40: 0.05 | F40: 0.09097550699 | G40: 0.09097550699 | H40: -0.05518812543 | I40: -0.05518812543 | J40: 0.153477391 | K40: 0.153477391 | L40: 0.246394359 | M40: 0.246394359 | O40: no funds | P40: 557 | Q40: 171 | R40: 364 | S40: 27 | AD40: 28 | AM40: 0 | AN40: 0 | AS40: =IF(AQ40=SUM(AN27:AN1126),NA(),IF(AQ40<>0,IF(AS39*(1+retroi)-(prepen1/100000)*(1+rinf)^AQ40<0,NA(),AS39*(1+retroi)-(prepen1/100000)*(1+rinf)^AQ40),NA())) ->  | AT40: =IF(AQ40=SUM(AN27:AN1126),NA(),IF(AQ40<>0,IF((AT39-B39)*(1+alloc1*Simulator!E40+alloc2*Simulator!F40+alloc3*Simulator!H40+alloc4*Simulator!J40+alloc5*Simulator!M40)<0,NA(),(AT39-B39)*(1+alloc1*Simulator!E40+alloc2*Simulator!F40+alloc3*Simulator!H40+alloc4*Simulator!J40+alloc5*Simulator!M40)),NA())) ->  | AV40: 11.30417129 | AW40: =(AV40/$AV$12)^(1/AQ40)-1 ->  | AX40: 8.432315311 | AY40: =(AX40/$AX$12)^(1/AQ40)-1 ->  | AZ40: 17.98686187 | BA40: =(AZ40/$AZ$12)^(1/AQ40)-1 ->  | BB40: 1.379323171 | BC40: =(BB40/$BB$12)^(1/AQ40)-1 -> 
A41: 29 | B41: 66.08353436 | D41: 0.05 | E41: 0.05 | F41: 0.05523624701 | G41: 0.05523624701 | H41: 0.1872134374 | I41: 0.1872134374 | J41: -0.1307211971 | K41: -0.1307211971 | L41: -0.1955760326 | M41: -0.1955760326 | O41: no funds | P41: 588 | Q41: 203 | R41: 316 | S41: 22 | AD41: 29 | AM41: 0 | AN41: 0 | AT41: =IF(AQ41=SUM(AN28:AN1127),NA(),IF(AQ41<>0,IF((AT40-B40)*(1+alloc1*Simulator!E41+alloc2*Simulator!F41+alloc3*Simulator!H41+alloc4*Simulator!J41+alloc5*Simulator!M41)<0,NA(),(AT40-B40)*(1+alloc1*Simulator!E41+alloc2*Simulator!F41+alloc3*Simulator!H41+alloc4*Simulator!J41+alloc5*Simulator!M41)),NA())) ->  | AV41: 11.92857129 | AX41: 10.01095805 | AZ41: 15.63559776 | BB41: 1.109560617
A42: 30 | B42: 71.11295525 | D42: 0.05 | E42: 0.05 | F42: 0.08841454007 | G42: 0.08841454007 | H42: 0.1564071286 | I42: 0.1564071286 | J42: 0.1600807223 | K42: 0.1600807223 | L42: -0.3291307876 | M42: -0.3291307876 | O42: no funds | P42: 640 | Q42: 235 | R42: 367 | S42: 15 | AD42: 30 | AM42: 0 | AN42: 0 | AT42: =IF(AQ42=SUM(AN29:AN1128),NA(),IF(AQ42<>0,IF((AT41-B41)*(1+alloc1*Simulator!E42+alloc2*Simulator!F42+alloc3*Simulator!H42+alloc4*Simulator!J42+alloc5*Simulator!M42)<0,NA(),(AT41-B41)*(1+alloc1*Simulator!E42+alloc2*Simulator!F42+alloc3*Simulator!H42+alloc4*Simulator!J42+alloc5*Simulator!M42)),NA())) ->  | AV42: 12.98323043 | AX42: 11.57674325 | AZ42: 18.13855554 | BB42: 0.7443700574
A43: 31 | B43: 76.51300363 | D43: 0.05 | E43: 0.05 | F43: 0.07973291296 | G43: 0.07973291296 | H43: 0.1972163227 | I43: 0.1972163227 | J43: 0.2332679034 | K43: 0.2332679034 | L43: -0.1095149642 | M43: -0.1095149642 | O43: no funds | P43: 691 | Q43: 281 | R43: 453 | S43: 13 | AD43: 31 | AM43: 0 | AN43: 0 | AT43: =IF(AQ43=SUM(AN30:AN1129),NA(),IF(AQ43<>0,IF((AT42-B42)*(1+alloc1*Simulator!E43+alloc2*Simulator!F43+alloc3*Simulator!H43+alloc4*Simulator!J43+alloc5*Simulator!M43)<0,NA(),(AT42-B42)*(1+alloc1*Simulator!E43+alloc2*Simulator!F43+alloc3*Simulator!H43+alloc4*Simulator!J43+alloc5*Simulator!M43)),NA())) ->  | AV43: 14.01842121 | AX43: 13.85986598 | AZ43: 22.36969836 | BB43: 0.6628503972
A44: 32 | B44: =(prepen1*(1+rinf)^A44/100000)-(pension/100000)-(income*(1+incrate)^A44/100000) -> 82.31015707 | D44: 0.05 | E44: 0.05 | F44: 0.1190120799 | G44: 0.1190120799 | H44: 0.143945519 | I44: 0.143945519 | J44: -0.1358400053 | K44: -0.1358400053 | L44: 0.3089813125 | M44: 0.3089813125 | O44: no funds | P44: 773 | Q44: 321 | R44: 391 | S44: 17 | AD44: 32 | AM44: 0 | AN44: 0 | AT44: =IF(AQ44=SUM(AN31:AN1130),NA(),IF(AQ44<>0,IF((AT43-B43)*(1+alloc1*Simulator!E44+alloc2*Simulator!F44+alloc3*Simulator!H44+alloc4*Simulator!J44+alloc5*Simulator!M44)<0,NA(),(AT43-B43)*(1+alloc1*Simulator!E44+alloc2*Simulator!F44+alloc3*Simulator!H44+alloc4*Simulator!J44+alloc5*Simulator!M44)),NA())) ->  | AV44: 15.68678268 | AX44: 15.85493158 | AZ44: 19.33099842 | BB44: 0.8676587829
A45: 33 | B45: 88.5326941 | D45: =IF(E45<>"",E45,_min1) -> 0.05 | E45: 0.05 | F45: 0.1263325424 | G45: =IF(F45<>"",F45,NORMINV(RAND(),mean2,stdev2)) -> 0.1263325424 | H45: 0.03399757975 | I45: =IF(H45<>"",H45,NORMINV(RAND(),mean3,stdev3)) -> 0.03399757975 | J45: 0.4302403137 | K45: =IF(J45<>"",J45,NORMINV(RAND(),mean4,stdev4)) -> 0.4302403137 | L45: =IF(M45<>"",M45,NORMINV(RAND(),mean5,stdev5)) -> 0.187980168 | M45: 0.187980168 | O45: no funds | P45: =ROUND((P44-U44-V44+IF(trans3="bucket 2",X44)+IF(trans4="bucket 2",Z44)+IF(trans5="bucket 2",AB44))*(1+F45),0) -> 871 | Q45: =ROUND((Q44-W44-X44+IF(trans2="bucket 3",V44)+IF(trans4="bucket 3",Z44)+IF(trans5="bucket 3",AB44))*(1+H45),0) -> 332 | R45: =ROUND((R44-Y44-Z44+IF(trans2="bucket 4",V44)+IF(trans3="bucket 4",X44)+IF(trans5="bucket 4",AB44))*(1+J45),0) -> 559 | S45: =ROUND((S44-AA44-AB44+IF(trans2="bucket 5",V44)+IF(trans3="bucket 5",X44)+IF(trans4="bucket 5",Z44))*(1+M45),0) -> 20 | AD45: 33 | AM45: 0 | AN45: 0 | AT45: =IF(AQ45=SUM(AN32:AN1131),NA(),IF(AQ45<>0,IF((AT44-B44)*(1+alloc1*Simulator!E45+alloc2*Simulator!F45+alloc3*Simulator!H45+alloc4*Simulator!J45+alloc5*Simulator!M45)<0,NA(),(AT44-B44)*(1+alloc1*Simulator!E45+alloc2*Simulator!F45+alloc3*Simulator!H45+alloc4*Simulator!J45+alloc5*Simulator!M45)),NA())) ->  | AV45: 17.66853381 | AX45: 16.39396088 | AZ45: 27.64797324 | BB45: 1.030761427
A46: 34 | B46: 95.21080654 | D46: 0.05 | E46: 0.05 | F46: 0.05805271211 | G46: 0.05805271211 | H46: 0.09773931762 | I46: 0.09773931762 | J46: 0.1827068684 | K46: 0.1827068684 | L46: 0.2341717063 | M46: 0.2341717063 | O46: no funds | P46: 922 | Q46: 364 | R46: 661 | S46: 25 | AD46: 34 | AM46: 0 | AN46: 0 | AT46: =IF(AQ46=SUM(AN33:AN1132),NA(),IF(AQ46<>0,IF((AT45-B45)*(1+alloc1*Simulator!E46+alloc2*Simulator!F46+alloc3*Simulator!H46+alloc4*Simulator!J46+alloc5*Simulator!M46)<0,NA(),(AT45-B45)*(1+alloc1*Simulator!E46+alloc2*Simulator!F46+alloc3*Simulator!H46+alloc4*Simulator!J46+alloc5*Simulator!M46)),NA())) ->  | AV46: 18.69424012 | AX46: 17.99629543 | AZ46: 32.69944785 | BB46: 1.272136589
A47: 35 | B47: 102.3767177 | D47: 0.05 | E47: 0.05 | F47: 0.05297954934 | G47: 0.05297954934 | H47: 0.04949891883 | I47: 0.04949891883 | J47: 0.06981931144 | K47: 0.06981931144 | L47: -0.259950878 | M47: -0.259950878 | O47: no funds | P47: 971 | Q47: 382 | R47: 707 | S47: 19 | AD47: 35 | AM47: 0 | AN47: 0 | AT47: =IF(AQ47=SUM(AN34:AN1133),NA(),IF(AQ47<>0,IF((AT46-B46)*(1+alloc1*Simulator!E47+alloc2*Simulator!F47+alloc3*Simulator!H47+alloc4*Simulator!J47+alloc5*Simulator!M47)<0,NA(),(AT46-B46)*(1+alloc1*Simulator!E47+alloc2*Simulator!F47+alloc3*Simulator!H47+alloc4*Simulator!J47+alloc5*Simulator!M47)),NA())) ->  | AV47: 19.68465254 | AX47: 18.8870926 | AZ47: 34.98250078 | BB47: 0.9414435657
A48: 36 | B48: 110.0648063 | D48: 0.05 | E48: 0.05 | F48: 0.07342577426 | G48: 0.07342577426 | H48: 0.1821055764 | I48: 0.1821055764 | J48: -0.129044903 | K48: -0.129044903 | L48: -0.4213999871 | M48: -0.4213999871 | O48: no funds | P48: 1042 | Q48: 452 | R48: 616 | S48: 11 | AD48: 36 | AM48: 0 | AN48: 0 | AT48: =IF(AQ48=SUM(AN35:AN1134),NA(),IF(AQ48<>0,IF((AT47-B47)*(1+alloc1*Simulator!E48+alloc2*Simulator!F48+alloc3*Simulator!H48+alloc4*Simulator!J48+alloc5*Simulator!M48)<0,NA(),(AT47-B47)*(1+alloc1*Simulator!E48+alloc2*Simulator!F48+alloc3*Simulator!H48+alloc4*Simulator!J48+alloc5*Simulator!M48)),NA())) ->  | AV48: 21.13001339 | AW48: =(AV48/$AV$12)^(1/AQ48)-1 ->  | AX48: 22.32653748 | AY48: =(AX48/$AX$12)^(1/AQ48)-1 ->  | AZ48: 30.46818736 | BA48: =(AZ48/$AZ$12)^(1/AQ48)-1 ->  | BB48: 0.5447192592 | BC48: =(BB48/$BB$12)^(1/AQ48)-1 -> 
A49: 37 | B49: 118.3117372 | D49: 0.05 | E49: 0.05 | F49: 0.1143403366 | G49: 0.1143403366 | H49: -0.02174615074 | I49: -0.02174615074 | J49: 0.3764250944 | K49: 0.3764250944 | L49: -0.08618374874 | M49: -0.08618374874 | O49: no funds | P49: 1161 | Q49: 442 | R49: 848 | S49: 10 | AD49: 37 | AM49: 0 | AN49: 0 | AT49: =IF(AQ49=SUM(AN36:AN1135),NA(),IF(AQ49<>0,IF((AT48-B48)*(1+alloc1*Simulator!E49+alloc2*Simulator!F49+alloc3*Simulator!H49+alloc4*Simulator!J49+alloc5*Simulator!M49)<0,NA(),(AT48-B48)*(1+alloc1*Simulator!E49+alloc2*Simulator!F49+alloc3*Simulator!H49+alloc4*Simulator!J49+alloc5*Simulator!M49)),NA())) ->  | AV49: 23.54602623 | AX49: 21.84102123 | AZ49: 41.93717766 | BB49: 0.4977733115
A50: 38 | B50: 127.1565972 | D50: 0.05 | E50: 0.05 | F50: 0.1851567578 | G50: 0.1851567578 | H50: 0.166151829 | I50: 0.166151829 | J50: -0.1050962044 | K50: -0.1050962044 | L50: 0.550063701 | M50: 0.550063701 | O50: no funds | P50: 1376 | Q50: 515 | R50: 759 | S50: 16 | AD50: 38 | AM50: 0 | AN50: 0 | AT50: =IF(AQ50=SUM(AN37:AN1136),NA(),IF(AQ50<>0,IF((AT49-B49)*(1+alloc1*Simulator!E50+alloc2*Simulator!F50+alloc3*Simulator!H50+alloc4*Simulator!J50+alloc5*Simulator!M50)<0,NA(),(AT49-B49)*(1+alloc1*Simulator!E50+alloc2*Simulator!F50+alloc3*Simulator!H50+alloc4*Simulator!J50+alloc5*Simulator!M50)),NA())) ->  | AV50: 27.90573211 | AX50: 25.46994686 | AZ50: 37.52973947 | BB50: 0.7715803414
A51: 39 | B51: 136.6410382 | D51: 0.05 | E51: 0.05 | F51: 0.1032283492 | G51: 0.1032283492 | H51: 0.04965381677 | I51: 0.04965381677 | J51: 0.2508221887 | K51: 0.2508221887 | L51: -0.0805873367 | M51: -0.0805873367 | O51: no funds | P51: 1518 | Q51: 541 | R51: 949 | S51: 15 | AD51: 39 | AM51: 0 | AN51: 0 | AT51: =IF(AQ51=SUM(AN38:AN1137),NA(),IF(AQ51<>0,IF((AT50-B50)*(1+alloc1*Simulator!E51+alloc2*Simulator!F51+alloc3*Simulator!H51+alloc4*Simulator!J51+alloc5*Simulator!M51)<0,NA(),(AT50-B50)*(1+alloc1*Simulator!E51+alloc2*Simulator!F51+alloc3*Simulator!H51+alloc4*Simulator!J51+alloc5*Simulator!M51)),NA())) ->  | AV51: 30.78639477 | AX51: 26.73462693 | AZ51: 46.94303086 | BB51: 0.7094007367
A52: 40 | B52: 146.8094257 | D52: 0.05 | E52: 0.05 | F52: 0.06147563913 | G52: 0.06147563913 | H52: 0.09213333615 | I52: 0.09213333615 | J52: 0.4010188521 | K52: 0.4010188521 | L52: 0.300408493 | M52: 0.300408493 | O52: no funds | P52: 1611 | Q52: 591 | R52: 1330 | S52: 20 | AD52: 40 | AM52: 0 | AN52: 0 | AS52: =IF(AQ52=SUM(AN39:AN1138),NA(),IF(AQ52<>0,IF(AS51*(1+retroi)-(prepen1/100000)*(1+rinf)^AQ52<0,NA(),AS51*(1+retroi)-(prepen1/100000)*(1+rinf)^AQ52),NA())) ->  | AT52: =IF(AQ52=SUM(AN39:AN1138),NA(),IF(AQ52<>0,IF((AT51-B51)*(1+alloc1*Simulator!E52+alloc2*Simulator!F52+alloc3*Simulator!H52+alloc4*Simulator!J52+alloc5*Simulator!M52)<0,NA(),(AT51-B51)*(1+alloc1*Simulator!E52+alloc2*Simulator!F52+alloc3*Simulator!H52+alloc4*Simulator!J52+alloc5*Simulator!M52)),NA())) ->  | AV52: 32.67900806 | AX52: 29.1977773 | AZ52: 65.76807121 | BB52: 0.9225107429
A53: 41 | B53: 157.7089946 | D53: 0.05 | E53: 0.05 | F53: 0.07598021587 | G53: 0.07598021587 | H53: 0.02298552149 | I53: 0.02298552149 | J53: 0.005740174724 | K53: 0.005740174724 | L53: 0.3534930602 | M53: 0.3534930602 | O53: no funds | P53: 1733 | Q53: 605 | R53: 1338 | S53: 27 | AD53: 41 | AM53: 0 | AN53: 0 | AT53: =IF(AQ53=SUM(AN40:AN1139),NA(),IF(AQ53<>0,IF((AT52-B52)*(1+alloc1*Simulator!E53+alloc2*Simulator!F53+alloc3*Simulator!H53+alloc4*Simulator!J53+alloc5*Simulator!M53)<0,NA(),(AT52-B52)*(1+alloc1*Simulator!E53+alloc2*Simulator!F53+alloc3*Simulator!H53+alloc4*Simulator!J53+alloc5*Simulator!M53)),NA())) ->  | AV53: 35.16196615 | AX53: 29.86890344 | AZ53: 66.14559143 | BB53: 1.248611889
A54: 42 | B54: 169.3900105 | D54: 0.05 | E54: 0.05 | F54: 0.1177672906 | G54: 0.1177672906 | H54: 0.3038666412 | I54: 0.3038666412 | J54: 0.1594432095 | K54: 0.1594432095 | L54: 0.3638118629 | M54: 0.3638118629 | O54: no funds | P54: 1937 | Q54: 789 | R54: 1551 | S54: 37 | AD54: 42 | AM54: 0 | AN54: 0 | AT54: =IF(AQ54=SUM(AN41:AN1140),NA(),IF(AQ54<>0,IF((AT53-B53)*(1+alloc1*Simulator!E54+alloc2*Simulator!F54+alloc3*Simulator!H54+alloc4*Simulator!J54+alloc5*Simulator!M54)<0,NA(),(AT53-B53)*(1+alloc1*Simulator!E54+alloc2*Simulator!F54+alloc3*Simulator!H54+alloc4*Simulator!J54+alloc5*Simulator!M54)),NA())) ->  | AV54: 39.30289564 | AX54: 38.94506681 | AZ54: 76.69205683 | BB54: 1.702871706
A55: 43 | B55: 181.9059374 | D55: 0.05 | E55: 0.05 | F55: 0.06399524911 | G55: 0.06399524911 | H55: 0.061019726 | I55: 0.061019726 | J55: 0.08237479249 | K55: 0.08237479249 | L55: 0.06437669828 | M55: 0.06437669828 | O55: no funds | P55: 2061 | Q55: 837 | R55: 1679 | S55: 39 | AD55: 43 | AM55: 0 | AN55: 0 | AT55: =IF(AQ55=SUM(AN42:AN1141),NA(),IF(AQ55<>0,IF((AT54-B54)*(1+alloc1*Simulator!E55+alloc2*Simulator!F55+alloc3*Simulator!H55+alloc4*Simulator!J55+alloc5*Simulator!M55)<0,NA(),(AT54-B54)*(1+alloc1*Simulator!E55+alloc2*Simulator!F55+alloc3*Simulator!H55+alloc4*Simulator!J55+alloc5*Simulator!M55)),NA())) ->  | AV55: 41.81809423 | AX55: 41.32148411 | AZ55: 83.00954909 | BB55: 1.812496964
A56: 44 | B56: 195.313611 | D56: 0.05 | E56: 0.05 | F56: 0.07702316777 | G56: 0.07702316777 | H56: 0.3048937035 | I56: 0.3048937035 | J56: 0.3949697209 | K56: 0.3949697209 | L56: 0.08255097112 | M56: 0.08255097112 | O56: no funds | P56: 2220 | Q56: 1092 | R56: 2342 | S56: 42 | AD56: 44 | AM56: 0 | AN56: 0 | AT56: =IF(AQ56=SUM(AN43:AN1142),NA(),IF(AQ56<>0,IF((AT55-B55)*(1+alloc1*Simulator!E56+alloc2*Simulator!F56+alloc3*Simulator!H56+alloc4*Simulator!J56+alloc5*Simulator!M56)<0,NA(),(AT55-B55)*(1+alloc1*Simulator!E56+alloc2*Simulator!F56+alloc3*Simulator!H56+alloc4*Simulator!J56+alloc5*Simulator!M56)),NA())) ->  | AV56: 45.03905632 | AX56: 53.92014444 | AZ56: 115.7958075 | BB56: 1.962120348
A57: 45 | B57: 209.6734184 | D57: 0.05 | E57: 0.05 | F57: 0.07377524148 | G57: 0.07377524148 | H57: 0.1560455418 | I57: 0.1560455418 | J57: -0.01466538783 | K57: -0.01466538783 | L57: 0.1393611091 | M57: 0.1393611091 | O57: no funds | P57: 2384 | Q57: 1262 | R57: 2308 | S57: 48 | AD57: 45 | AM57: 0 | AN57: 0 | AT57: =IF(AQ57=SUM(AN44:AN1143),NA(),IF(AQ57<>0,IF((AT56-B56)*(1+alloc1*Simulator!E57+alloc2*Simulator!F57+alloc3*Simulator!H57+alloc4*Simulator!J57+alloc5*Simulator!M57)<0,NA(),(AT56-B56)*(1+alloc1*Simulator!E57+alloc2*Simulator!F57+alloc3*Simulator!H57+alloc4*Simulator!J57+alloc5*Simulator!M57)),NA())) ->  | AV57: 48.36182358 | AX57: 62.33414259 | AZ57: 114.0976171 | BB57: 2.235563616
A58: 46 | B58: 225.0494822 | D58: 0.05 | E58: 0.05 | F58: 0.03277364021 | G58: 0.03277364021 | H58: 0.2315260234 | I58: 0.2315260234 | J58: -0.08866920265 | K58: -0.08866920265 | L58: 0.05185205571 | M58: 0.05185205571 | O58: no funds | P58: 2462 | Q58: 1554 | R58: 2103 | S58: 50 | AD58: 46 | AM58: 0 | AN58: 0 | AT58: =IF(AQ58=SUM(AN45:AN1144),NA(),IF(AQ58<>0,IF((AT57-B57)*(1+alloc1*Simulator!E58+alloc2*Simulator!F58+alloc3*Simulator!H58+alloc4*Simulator!J58+alloc5*Simulator!M58)<0,NA(),(AT57-B57)*(1+alloc1*Simulator!E58+alloc2*Simulator!F58+alloc3*Simulator!H58+alloc4*Simulator!J58+alloc5*Simulator!M58)),NA())) ->  | AV58: 49.94681658 | AX58: 76.76611875 | AZ58: 103.9806724 | BB58: 2.351482185
A59: 47 | B59: 241.5098501 | D59: 0.05 | E59: 0.05 | F59: 0.1101651523 | G59: 0.1101651523 | H59: 0.0821163166 | I59: 0.0821163166 | J59: 0.433776694 | K59: 0.433776694 | L59: 0.1520421517 | M59: 0.1520421517 | O59: no funds | P59: 2733 | Q59: 1682 | R59: 3015 | S59: 58 | AD59: 47 | AM59: 0 | AN59: 0 | AT59: =IF(AQ59=SUM(AN46:AN1145),NA(),IF(AQ59<>0,IF((AT58-B58)*(1+alloc1*Simulator!E59+alloc2*Simulator!F59+alloc3*Simulator!H59+alloc4*Simulator!J59+alloc5*Simulator!M59)<0,NA(),(AT58-B58)*(1+alloc1*Simulator!E59+alloc2*Simulator!F59+alloc3*Simulator!H59+alloc4*Simulator!J59+alloc5*Simulator!M59)),NA())) ->  | AV59: 55.44921524 | AX59: 83.06986966 | AZ59: 149.0850647 | BB59: 2.709006596
A60: 48 | B60: 259.1266884 | D60: 0.05 | E60: 0.05 | F60: 0.05195870613 | G60: 0.05195870613 | H60: 0.08789089363 | I60: 0.08789089363 | J60: 0.09327057014 | K60: 0.09327057014 | L60: 0.1200211906 | M60: 0.1200211906 | O60: no funds | P60: 2875 | Q60: 1830 | R60: 3296 | S60: 65 | AD60: 48 | AM60: 0 | AN60: 0 | AT60: =IF(AQ60=SUM(AN47:AN1146),NA(),IF(AQ60<>0,IF((AT59-B59)*(1+alloc1*Simulator!E60+alloc2*Simulator!F60+alloc3*Simulator!H60+alloc4*Simulator!J60+alloc5*Simulator!M60)<0,NA(),(AT59-B59)*(1+alloc1*Simulator!E60+alloc2*Simulator!F60+alloc3*Simulator!H60+alloc4*Simulator!J60+alloc5*Simulator!M60)),NA())) ->  | AV60: 58.33028472 | AX60: 90.37095474 | AZ60: 162.9903136 | BB60: 3.034144793
A61: 49 | B61: 277.9764788 | D61: 0.05 | E61: 0.05 | F61: 0.1218521951 | G61: 0.1218521951 | H61: -0.04775307606 | I61: -0.04775307606 | J61: 0.1330181522 | K61: 0.1330181522 | L61: -0.1381570026 | M61: -0.1381570026 | O61: no funds | P61: 3225 | Q61: 1743 | R61: 3734 | S61: 56 | AD61: 49 | AM61: 0 | AN61: 0 | AT61: =IF(AQ61=SUM(AN48:AN1147),NA(),IF(AQ61<>0,IF((AT60-B60)*(1+alloc1*Simulator!E61+alloc2*Simulator!F61+alloc3*Simulator!H61+alloc4*Simulator!J61+alloc5*Simulator!M61)<0,NA(),(AT60-B60)*(1+alloc1*Simulator!E61+alloc2*Simulator!F61+alloc3*Simulator!H61+alloc4*Simulator!J61+alloc5*Simulator!M61)),NA())) ->  | AV61: 65.43795795 | AX61: 86.05546366 | AZ61: 184.670984 | BB61: 2.614956443
A62: 50 | B62: 298.1402179 | D62: 0.05 | E62: 0.05 | F62: 0.1103977335 | G62: 0.1103977335 | H62: 0.1099007172 | I62: 0.1099007172 | J62: -0.2357923705 | K62: -0.2357923705 | L62: -0.1486666113 | M62: -0.1486666113 | O62: no funds | P62: 3581 | Q62: 1935 | R62: 2854 | S62: 48 | AD62: 50 | AM62: 0 | AN62: 0 | AT62: =IF(AQ62=SUM(AN49:AN1148),NA(),IF(AQ62<>0,IF((AT61-B61)*(1+alloc1*Simulator!E62+alloc2*Simulator!F62+alloc3*Simulator!H62+alloc4*Simulator!J62+alloc5*Simulator!M62)<0,NA(),(AT61-B61)*(1+alloc1*Simulator!E62+alloc2*Simulator!F62+alloc3*Simulator!H62+alloc4*Simulator!J62+alloc5*Simulator!M62)),NA())) ->  | AV62: 72.66216019 | AX62: 95.51302084 | AZ62: 141.1269749 | BB62: 2.22619973
A63: 51 | B63: 319.7036183 | D63: 0.05 | E63: 0.05 | F63: 0.03767091787 | G63: 0.03767091787 | H63: 0.09232682168 | I63: 0.09232682168 | J63: 0.115208163 | K63: 0.115208163 | L63: 0.07054137359 | M63: 0.07054137359 | O63: no funds | P63: 3716 | Q63: 2114 | R63: 3183 | S63: 51 | AD63: 51 | AM63: 0 | AN63: 0 | AT63: =IF(AQ63=SUM(AN50:AN1149),NA(),IF(AQ63<>0,IF((AT62-B62)*(1+alloc1*Simulator!E63+alloc2*Simulator!F63+alloc3*Simulator!H63+alloc4*Simulator!J63+alloc5*Simulator!M63)<0,NA(),(AT62-B62)*(1+alloc1*Simulator!E63+alloc2*Simulator!F63+alloc3*Simulator!H63+alloc4*Simulator!J63+alloc5*Simulator!M63)),NA())) ->  | AV63: 75.39941046 | AX63: 104.3314345 | AZ63: 157.3859544 | BB63: 2.383238917
A64: 52 | B64: 342.757309 | D64: 0.05 | E64: 0.05 | F64: 0.04431325154 | G64: 0.04431325154 | H64: -0.002134430885 | I64: -0.002134430885 | J64: 0.3306285339 | K64: 0.3306285339 | L64: 0.1314717873 | M64: 0.1314717873 | O64: no funds | P64: 3881 | Q64: 2109 | R64: 4235 | S64: 58 | AD64: 52 | AM64: 0 | AN64: 0 | AT64: =IF(AQ64=SUM(AN51:AN1150),NA(),IF(AQ64<>0,IF((AT63-B63)*(1+alloc1*Simulator!E64+alloc2*Simulator!F64+alloc3*Simulator!H64+alloc4*Simulator!J64+alloc5*Simulator!M64)<0,NA(),(AT63-B63)*(1+alloc1*Simulator!E64+alloc2*Simulator!F64+alloc3*Simulator!H64+alloc4*Simulator!J64+alloc5*Simulator!M64)),NA())) ->  | AV64: 78.74060351 | AX64: 104.1087462 | AZ64: 209.4222418 | BB64: 2.696567597
A65: 53 | B65: 367.3970351 | D65: 0.05 | E65: 0.05 | F65: 0.07517278653 | G65: 0.07517278653 | H65: 0.2562684802 | I65: 0.2562684802 | J65: 0.018451084 | K65: 0.018451084 | L65: -0.07540175244 | M65: -0.07540175244 | O65: no funds | P65: 4173 | Q65: 2649 | R65: 4313 | S65: 54 | AD65: 53 | AM65: 0 | AN65: 0 | AT65: =IF(AQ65=SUM(AN52:AN1151),NA(),IF(AQ65<>0,IF((AT64-B64)*(1+alloc1*Simulator!E65+alloc2*Simulator!F65+alloc3*Simulator!H65+alloc4*Simulator!J65+alloc5*Simulator!M65)<0,NA(),(AT64-B64)*(1+alloc1*Simulator!E65+alloc2*Simulator!F65+alloc3*Simulator!H65+alloc4*Simulator!J65+alloc5*Simulator!M65)),NA())) ->  | AV65: 84.65975408 | AX65: 130.7885364 | AZ65: 213.2863092 | BB65: 2.493241674
A66: 54 | B66: 393.7238534 | D66: 0.05 | E66: 0.05 | F66: 0.09115940043 | G66: 0.09115940043 | H66: 0.196841558 | I66: 0.196841558 | J66: 0.1885639902 | K66: 0.1885639902 | L66: -0.009630776332 | M66: -0.009630776332 | O66: no funds | P66: 4553 | Q66: 3170 | R66: 5126 | S66: 53 | AD66: 54 | AM66: 0 | AN66: 0 | AT66: =IF(AQ66=SUM(AN53:AN1152),NA(),IF(AQ66<>0,IF((AT65-B65)*(1+alloc1*Simulator!E66+alloc2*Simulator!F66+alloc3*Simulator!H66+alloc4*Simulator!J66+alloc5*Simulator!M66)<0,NA(),(AT65-B65)*(1+alloc1*Simulator!E66+alloc2*Simulator!F66+alloc3*Simulator!H66+alloc4*Simulator!J66+alloc5*Simulator!M66)),NA())) ->  | AV66: 92.37728651 | AX66: 156.5331557 | AZ66: 253.5044267 | BB66: 2.469229822
A67: 55 | B67: 421.8443227 | D67: 0.05 | E67: 0.05 | F67: 0.1108813972 | G67: 0.1108813972 | H67: 0.03096979164 | I67: 0.03096979164 | J67: -0.1194324929 | K67: -0.1194324929 | L67: 0.7375747099 | M67: 0.7375747099 | O67: no funds | P67: 5058 | Q67: 3268 | R67: 4514 | S67: 92 | AD67: 55 | AM67: 0 | AN67: 0 | AT67: =IF(AQ67=SUM(AN54:AN1153),NA(),IF(AQ67<>0,IF((AT66-B66)*(1+alloc1*Simulator!E67+alloc2*Simulator!F67+alloc3*Simulator!H67+alloc4*Simulator!J67+alloc5*Simulator!M67)<0,NA(),(AT66-B66)*(1+alloc1*Simulator!E67+alloc2*Simulator!F67+alloc3*Simulator!H67+alloc4*Simulator!J67+alloc5*Simulator!M67)),NA())) ->  | AV67: 102.6202091 | AX67: 161.3809549 | AZ67: 223.227761 | BB67: 4.290471291
A68: 56 | B68: 451.8706857 | D68: 0.05 | E68: 0.05 | F68: 0.05926298196 | G68: 0.05926298196 | H68: 0.2256899316 | I68: 0.2256899316 | J68: -0.2762753716 | K68: -0.2762753716 | L68: 0.176940712 | M68: 0.176940712 | O68: no funds | P68: 5358 | Q68: 4006 | R68: 3267 | S68: 108 | AD68: 56 | AM68: 0 | AN68: 0 | AT68: =IF(AQ68=SUM(AN55:AN1154),NA(),IF(AQ68<>0,IF((AT67-B67)*(1+alloc1*Simulator!E68+alloc2*Simulator!F68+alloc3*Simulator!H68+alloc4*Simulator!J68+alloc5*Simulator!M68)<0,NA(),(AT67-B67)*(1+alloc1*Simulator!E68+alloc2*Simulator!F68+alloc3*Simulator!H68+alloc4*Simulator!J68+alloc5*Simulator!M68)),NA())) ->  | AV68: 108.7017887 | AX68: 197.8030116 | AZ68: 161.5554284 | BB68: 5.049630336
A69: 57 | B69: 483.9210394 | D69: 0.05 | E69: 0.05 | F69: 0.1096668937 | G69: 0.1096668937 | H69: 0.01467095592 | I69: 0.01467095592 | J69: -0.151220119 | K69: -0.151220119 | L69: -0.2387196468 | M69: -0.2387196468 | O69: no funds | P69: 5946 | Q69: 4065 | R69: 2773 | S69: 82 | AD69: 57 | AM69: 0 | AN69: 0 | AT69: =IF(AQ69=SUM(AN56:AN1155),NA(),IF(AQ69<>0,IF((AT68-B68)*(1+alloc1*Simulator!E69+alloc2*Simulator!F69+alloc3*Simulator!H69+alloc4*Simulator!J69+alloc5*Simulator!M69)<0,NA(),(AT68-B68)*(1+alloc1*Simulator!E69+alloc2*Simulator!F69+alloc3*Simulator!H69+alloc4*Simulator!J69+alloc5*Simulator!M69)),NA())) ->  | AV69: 120.6227762 | AX69: 200.7049708 | AZ69: 137.1249973 | BB69: 3.844184366
A70: 58 | B70: 518.1194913 | D70: 0.05 | E70: 0.05 | F70: 0.08184333412 | G70: 0.08184333412 | H70: 0.1086017025 | I70: 0.1086017025 | J70: -0.04301894865 | K70: -0.04301894865 | L70: 0.1932998368 | M70: 0.1932998368 | O70: no funds | P70: 6433 | Q70: 4506 | R70: 2654 | S70: 98 | AD70: 58 | AM70: 0 | AN70: 0 | AT70: =IF(AQ70=SUM(AN57:AN1156),NA(),IF(AQ70<>0,IF((AT69-B69)*(1+alloc1*Simulator!E70+alloc2*Simulator!F70+alloc3*Simulator!H70+alloc4*Simulator!J70+alloc5*Simulator!M70)<0,NA(),(AT69-B69)*(1+alloc1*Simulator!E70+alloc2*Simulator!F70+alloc3*Simulator!H70+alloc4*Simulator!J70+alloc5*Simulator!M70)),NA())) ->  | AV70: 130.4949464 | AX70: 222.5018724 | AZ70: 131.2260241 | BB70: 4.587264576
A71: 59 | B71: 554.5962963 | D71: 0.05 | E71: 0.05 | F71: 0.04512695026 | G71: 0.04512695026 | H71: 0.2441914237 | I71: 0.2441914237 | J71: -0.1194499907 | K71: -0.1194499907 | L71: 0.5390467988 | M71: 0.5390467988 | O71: no funds | P71: 6723 | Q71: 5606 | R71: 2337 | S71: 151 | AD71: 59 | AM71: 0 | AN71: 0 | AT71: =IF(AQ71=SUM(AN58:AN1157),NA(),IF(AQ71<>0,IF((AT70-B70)*(1+alloc1*Simulator!E71+alloc2*Simulator!F71+alloc3*Simulator!H71+alloc4*Simulator!J71+alloc5*Simulator!M71)<0,NA(),(AT70-B70)*(1+alloc1*Simulator!E71+alloc2*Simulator!F71+alloc3*Simulator!H71+alloc4*Simulator!J71+alloc5*Simulator!M71)),NA())) ->  | AV71: 136.3837853 | AX71: 276.8349214 | AZ71: 115.5510767 | BB71: 7.060014861
A72: 60 | B72: 593.4879702 | D72: 0.05 | E72: 0.05 | F72: 0.08822156147 | G72: 0.08822156147 | H72: 0.04365114902 | I72: 0.04365114902 | J72: -0.308024046 | K72: -0.308024046 | L72: 0.1634721436 | M72: 0.1634721436 | O72: no funds | P72: 7316 | Q72: 5851 | R72: 1617 | S72: 176 | AD72: 60 | AM72: 0 | AN72: 0 | AT72: =IF(AQ72=SUM(AN59:AN1158),NA(),IF(AQ72<>0,IF((AT71-B71)*(1+alloc1*Simulator!E72+alloc2*Simulator!F72+alloc3*Simulator!H72+alloc4*Simulator!J72+alloc5*Simulator!M72)<0,NA(),(AT71-B71)*(1+alloc1*Simulator!E72+alloc2*Simulator!F72+alloc3*Simulator!H72+alloc4*Simulator!J72+alloc5*Simulator!M72)),NA())) ->  | AV72: 148.4157758 | AX72: 288.9190838 | AZ72: 79.95856655 | BB72: 8.214130624
A73: 61 | B73: 634.937375 | D73: 0.05 | E73: 0.05 | F73: 0.09042360439 | G73: 0.09042360439 | H73: 0.1171003383 | I73: 0.1171003383 | J73: 0.1087745126 | K73: 0.1087745126 | L73: 0.07713837518 | M73: 0.07713837518 | O73: no funds | P73: 7978 | Q73: 6536 | R73: 1793 | S73: 190 | AD73: 61 | AM73: 0 | AN73: 0 | AT73: =IF(AQ73=SUM(AN60:AN1159),NA(),IF(AQ73<>0,IF((AT72-B72)*(1+alloc1*Simulator!E73+alloc2*Simulator!F73+alloc3*Simulator!H73+alloc4*Simulator!J73+alloc5*Simulator!M73)<0,NA(),(AT72-B72)*(1+alloc1*Simulator!E73+alloc2*Simulator!F73+alloc3*Simulator!H73+alloc4*Simulator!J73+alloc5*Simulator!M73)),NA())) ->  | AV73: 161.8360652 | AX73: 322.7516063 | AZ73: 88.65602066 | BB73: 8.847755314
A74: 62 | B74: 679.0937689 | D74: 0.05 | E74: 0.05 | F74: 0.06734745871 | G74: 0.06734745871 | H74: 0.0434278356 | I74: 0.0434278356 | J74: 0.16061095 | K74: 0.16061095 | L74: 0.2841624595 | M74: 0.2841624595 | O74: no funds | P74: 8515 | Q74: 6820 | R74: 2081 | S74: 244 | AD74: 62 | AM74: 0 | AN74: 0 | AT74: =IF(AQ74=SUM(AN61:AN1160),NA(),IF(AQ74<>0,IF((AT73-B73)*(1+alloc1*Simulator!E74+alloc2*Simulator!F74+alloc3*Simulator!H74+alloc4*Simulator!J74+alloc5*Simulator!M74)<0,NA(),(AT73-B73)*(1+alloc1*Simulator!E74+alloc2*Simulator!F74+alloc3*Simulator!H74+alloc4*Simulator!J74+alloc5*Simulator!M74)),NA())) ->  | AV74: 172.735313 | AX74: 336.76801 | AZ74: 102.8951484 | BB74: 11.36195523
A75: 63 | B75: 726.1128147 | D75: 0.05 | E75: 0.05 | F75: 0.0694266028 | G75: 0.0694266028 | H75: 0.2928295511 | I75: 0.2928295511 | J75: -0.0746251321 | K75: -0.0746251321 | L75: 0.1748514379 | M75: 0.1748514379 | O75: no funds | P75: 9106 | Q75: 8817 | R75: 1926 | S75: 287 | AD75: 63 | AM75: 0 | AN75: 0 | AT75: =IF(AQ75=SUM(AN62:AN1161),NA(),IF(AQ75<>0,IF((AT74-B74)*(1+alloc1*Simulator!E75+alloc2*Simulator!F75+alloc3*Simulator!H75+alloc4*Simulator!J75+alloc5*Simulator!M75)<0,NA(),(AT74-B74)*(1+alloc1*Simulator!E75+alloc2*Simulator!F75+alloc3*Simulator!H75+alloc4*Simulator!J75+alloc5*Simulator!M75)),NA())) ->  | AV75: 184.7277389 | AX75: 435.3836351 | AZ75: 95.21658432 | BB75: 13.34860943
A76: 64 | B76: =(prepen1*(1+rinf)^A76/100000)-(pension/100000)-(income*(1+incrate)^A76/100000) -> 776.1565387 | D76: 0.05 | E76: 0.05 | F76: 0.1038758257 | G76: 0.1038758257 | H76: 0.01938972783 | I76: 0.01938972783 | J76: 0.3846275801 | K76: 0.3846275801 | L76: -0.01100981128 | M76: -0.01100981128 | O76: no funds | P76: 10052 | Q76: 8988 | R76: 2667 | S76: 284 | AD76: 64 | AM76: 0 | AN76: 0 | AT76: =IF(AQ76=SUM(AN63:AN1162),NA(),IF(AQ76<>0,IF((AT75-B75)*(1+alloc1*Simulator!E76+alloc2*Simulator!F76+alloc3*Simulator!H76+alloc4*Simulator!J76+alloc5*Simulator!M76)<0,NA(),(AT75-B75)*(1+alloc1*Simulator!E76+alloc2*Simulator!F76+alloc3*Simulator!H76+alloc4*Simulator!J76+alloc5*Simulator!M76)),NA())) ->  | AV76: 203.9164853 | AX76: 443.8256053 | AZ76: 131.8395087 | BB76: 13.20164376
A77: 65 | B77: 829.3932304 | D77: =IF(E77<>"",E77,_min1) -> 0.05 | E77: 0.05 | F77: 0.1028421571 | G77: =IF(F77<>"",F77,NORMINV(RAND(),mean2,stdev2)) -> 0.1028421571 | H77: 0.0980492594 | I77: =IF(H77<>"",H77,NORMINV(RAND(),mean3,stdev3)) -> 0.0980492594 | J77: -0.005109842235 | K77: =IF(J77<>"",J77,NORMINV(RAND(),mean4,stdev4)) -> -0.005109842235 | L77: =IF(M77<>"",M77,NORMINV(RAND(),mean5,stdev5)) -> 0.2623584805 | M77: 0.2623584805 | O77: no funds | P77: =ROUND((P76-U76-V76+IF(trans3="bucket 2",X76)+IF(trans4="bucket 2",Z76)+IF(trans5="bucket 2",AB76))*(1+F77),0) -> 11086 | Q77: =ROUND((Q76-W76-X76+IF(trans2="bucket 3",V76)+IF(trans4="bucket 3",Z76)+IF(trans5="bucket 3",AB76))*(1+H77),0) -> 9869 | R77: =ROUND((R76-Y76-Z76+IF(trans2="bucket 4",V76)+IF(trans3="bucket 4",X76)+IF(trans5="bucket 4",AB76))*(1+J77),0) -> 2653 | S77: =ROUND((S76-AA76-AB76+IF(trans2="bucket 5",V76)+IF(trans3="bucket 5",X76)+IF(trans4="bucket 5",Z76))*(1+M77),0) -> 359 | AD77: 65 | AM77: 0 | AN77: 0 | AT77: =IF(AQ77=SUM(AN64:AN1163),NA(),IF(AQ77<>0,IF((AT76-B76)*(1+alloc1*Simulator!E77+alloc2*Simulator!F77+alloc3*Simulator!H77+alloc4*Simulator!J77+alloc5*Simulator!M77)<0,NA(),(AT76-B76)*(1+alloc1*Simulator!E77+alloc2*Simulator!F77+alloc3*Simulator!H77+alloc4*Simulator!J77+alloc5*Simulator!M77)),NA())) ->  | AV77: 224.8876966 | AX77: 487.3423772 | AZ77: 131.1658296 | BB77: 16.66520696
A78: =A77+1 -> 66 | B78: 885.9972743 | D78: 0.05 | E78: 0.05 | F78: 0.1062245981 | G78: 0.1062245981 | H78: 0.07866778062 | I78: 0.07866778062 | J78: 0.34668103 | K78: 0.34668103 | L78: 0.4490768778 | M78: 0.4490768778 | O78: =IF(O77="no funds","no funds",IF((O77-B77+U77+W77+Y77+AA77)*(1+D78)<0,"no funds",ROUND((O77-B77+U77+W77+Y77+AA77)*(1+D78),0))) -> no funds | P78: 12264 | Q78: 10645 | R78: 3573 | S78: 520 | AD78: =AD77+1 -> 66 | AM78: =IF($O78<$B78,$B78-$O78,0) -> 0 | AN78: =IF($O78<$B78,AD78,0) -> 0 | AT78: =IF(AQ78=SUM(AN65:AN1164),NA(),IF(AQ78<>0,IF((AT77-B77)*(1+alloc1*Simulator!E78+alloc2*Simulator!F78+alloc3*Simulator!H78+alloc4*Simulator!J78+alloc5*Simulator!M78)<0,NA(),(AT77-B77)*(1+alloc1*Simulator!E78+alloc2*Simulator!F78+alloc3*Simulator!H78+alloc4*Simulator!J78+alloc5*Simulator!M78)),NA())) ->  | AV78: =AV77*(1+F78) -> 248.7763018 | AW78: =(AV78/$AV$12)^(1/AQ78)-1 ->  | AX78: =AX77*(1+H78) -> 525.6805204 | AY78: =(AX78/$AX$12)^(1/AQ78)-1 ->  | AZ78: =AZ77*(1+J78) -> 176.6385345 | BA78: =(AZ78/$AZ$12)^(1/AQ78)-1 ->  | BB78: =BB77*(1+M78) -> 24.14916607 | BC78: =(BB78/$BB$12)^(1/AQ78)-1 -> 
A79: 67 | B79: 946.1489003 | D79: 0.05 | E79: 0.05 | F79: 0.1066038871 | G79: 0.1066038871 | H79: 0.09004935463 | I79: 0.09004935463 | J79: 0.374386418 | K79: 0.374386418 | L79: 0.1351260687 | M79: 0.1351260687 | O79: no funds | P79: 13571 | Q79: 11604 | R79: 4911 | S79: 590 | AD79: 67 | AM79: 0 | AN79: 0 | AT79: =IF(AQ79=SUM(AN66:AN1165),NA(),IF(AQ79<>0,IF((AT78-B78)*(1+alloc1*Simulator!E79+alloc2*Simulator!F79+alloc3*Simulator!H79+alloc4*Simulator!J79+alloc5*Simulator!M79)<0,NA(),(AT78-B78)*(1+alloc1*Simulator!E79+alloc2*Simulator!F79+alloc3*Simulator!H79+alloc4*Simulator!J79+alloc5*Simulator!M79)),NA())) ->  | AV79: 275.2968225 | AX79: 573.017712 | AZ79: 242.7696028 | BB79: 27.41234794
A80: 68 | B80: 1010.033841 | D80: 0.05 | E80: 0.05 | F80: 0.1420962532 | G80: 0.1420962532 | H80: 0.2852323498 | I80: 0.2852323498 | J80: 0.2428674265 | K80: 0.2428674265 | L80: -0.06478907293 | M80: -0.06478907293 | O80: no funds | P80: 15499 | Q80: 14914 | R80: 6104 | S80: 552 | AD80: 68 | AM80: 0 | AN80: 0 | AT80: =IF(AQ80=SUM(AN67:AN1166),NA(),IF(AQ80<>0,IF((AT79-B79)*(1+alloc1*Simulator!E80+alloc2*Simulator!F80+alloc3*Simulator!H80+alloc4*Simulator!J80+alloc5*Simulator!M80)<0,NA(),(AT79-B79)*(1+alloc1*Simulator!E80+alloc2*Simulator!F80+alloc3*Simulator!H80+alloc4*Simulator!J80+alloc5*Simulator!M80)),NA())) ->  | AV80: 314.4154695 | AX80: 736.4609005 | AZ80: 301.7304314 | BB80: 25.63632733
A81: 69 | B81: 1077.842879 | D81: 0.05 | E81: 0.05 | F81: 0.1422548773 | G81: 0.1422548773 | H81: 0.09883299939 | I81: 0.09883299939 | J81: -0.284838647 | K81: -0.284838647 | L81: 0.2372073338 | M81: 0.2372073338 | O81: no funds | P81: 17704 | Q81: 16388 | R81: 4365 | S81: 683 | AD81: 69 | AM81: 0 | AN81: 0 | AT81: =IF(AQ81=SUM(AN68:AN1167),NA(),IF(AQ81<>0,IF((AT80-B80)*(1+alloc1*Simulator!E81+alloc2*Simulator!F81+alloc3*Simulator!H81+alloc4*Simulator!J81+alloc5*Simulator!M81)<0,NA(),(AT80-B80)*(1+alloc1*Simulator!E81+alloc2*Simulator!F81+alloc3*Simulator!H81+alloc4*Simulator!J81+alloc5*Simulator!M81)),NA())) ->  | AV81: 359.1426036 | AX81: 809.2475402 | AZ81: 215.7859436 | BB81: 31.71745219
A82: 70 | B82: 1149.771274 | D82: 0.05 | E82: 0.05 | F82: 0.0312294901 | G82: 0.0312294901 | H82: 0.1432850605 | I82: 0.1432850605 | J82: 0.2625955389 | K82: 0.2625955389 | L82: 0.4876828862 | M82: 0.4876828862 | O82: no funds | P82: 18257 | Q82: 18736 | R82: 5511 | S82: 1016 | AD82: 70 | AM82: 0 | AN82: 0 | AT82: =IF(AQ82=SUM(AN69:AN1168),NA(),IF(AQ82<>0,IF((AT81-B81)*(1+alloc1*Simulator!E82+alloc2*Simulator!F82+alloc3*Simulator!H82+alloc4*Simulator!J82+alloc5*Simulator!M82)<0,NA(),(AT81-B81)*(1+alloc1*Simulator!E82+alloc2*Simulator!F82+alloc3*Simulator!H82+alloc4*Simulator!J82+alloc5*Simulator!M82)),NA())) ->  | AV82: 370.358444 | AX82: 925.200623 | AZ82: 272.4503698 | BB82: 47.18551081
A83: 71 | B83: 1226.018037 | D83: 0.05 | E83: 0.05 | F83: 0.1129130385 | G83: 0.1129130385 | H83: 0.07922898766 | I83: 0.07922898766 | J83: 0.2949044829 | K83: 0.2949044829 | L83: -0.05664109587 | M83: -0.05664109587 | O83: no funds | P83: 20318 | Q83: 20220 | R83: 7136 | S83: 958 | AD83: 71 | AM83: 0 | AN83: 0 | AT83: =IF(AQ83=SUM(AN70:AN1169),NA(),IF(AQ83<>0,IF((AT82-B82)*(1+alloc1*Simulator!E83+alloc2*Simulator!F83+alloc3*Simulator!H83+alloc4*Simulator!J83+alloc5*Simulator!M83)<0,NA(),(AT82-B82)*(1+alloc1*Simulator!E83+alloc2*Simulator!F83+alloc3*Simulator!H83+alloc4*Simulator!J83+alloc5*Simulator!M83)),NA())) ->  | AV83: 412.1767412 | AX83: 998.5033318 | AZ83: 352.7972052 | BB83: 44.51287177
A84: 72 | B84: 1306.785047 | D84: 0.05 | E84: 0.05 | F84: 0.1407260629 | G84: 0.1407260629 | H84: 0.04593640296 | I84: 0.04593640296 | J84: 0.1929354495 | K84: 0.1929354495 | L84: 0.07248640505 | M84: 0.07248640505 | O84: no funds | P84: 23177 | Q84: 21149 | R84: 8513 | S84: 1027 | AD84: 72 | AM84: 0 | AN84: 0 | AS84: =IF(AQ84=SUM(AN71:AN1170),NA(),IF(AQ84<>0,IF(AS83*(1+retroi)-(prepen1/100000)*(1+rinf)^AQ84<0,NA(),AS83*(1+retroi)-(prepen1/100000)*(1+rinf)^AQ84),NA())) ->  | AT84: =IF(AQ84=SUM(AN71:AN1170),NA(),IF(AQ84<>0,IF((AT83-B83)*(1+alloc1*Simulator!E84+alloc2*Simulator!F84+alloc3*Simulator!H84+alloc4*Simulator!J84+alloc5*Simulator!M84)<0,NA(),(AT83-B83)*(1+alloc1*Simulator!E84+alloc2*Simulator!F84+alloc3*Simulator!H84+alloc4*Simulator!J84+alloc5*Simulator!M84)),NA())) ->  | AV84: 470.1807512 | AX84: 1044.370983 | AZ84: 420.8642925 | BB84: 47.73944982
A85: 73 | B85: 1392.275974 | D85: 0.05 | E85: 0.05 | F85: 0.07495700756 | G85: 0.07495700756 | H85: 0.02332997569 | I85: 0.02332997569 | J85: -0.05455778522 | K85: -0.05455778522 | L85: 0.4642401623 | M85: 0.4642401623 | O85: no funds | P85: 24914 | Q85: 21642 | R85: 8049 | S85: 1504 | AD85: 73 | AM85: 0 | AN85: 0 | AT85: =IF(AQ85=SUM(AN72:AN1171),NA(),IF(AQ85<>0,IF((AT84-B84)*(1+alloc1*Simulator!E85+alloc2*Simulator!F85+alloc3*Simulator!H85+alloc4*Simulator!J85+alloc5*Simulator!M85)<0,NA(),(AT84-B84)*(1+alloc1*Simulator!E85+alloc2*Simulator!F85+alloc3*Simulator!H85+alloc4*Simulator!J85+alloc5*Simulator!M85)),NA())) ->  | AV85: 505.4240934 | AX85: 1068.736133 | AZ85: 397.9028688 | BB85: 69.90201976
A86: 74 | B86: 1482.694988 | D86: 0.05 | E86: 0.05 | F86: 0.07472019939 | G86: 0.07472019939 | H86: 0.2829127445 | I86: 0.2829127445 | J86: 0.2575863266 | K86: 0.2575863266 | L86: 0.4433606926 | M86: 0.4433606926 | O86: no funds | P86: 26776 | Q86: 27765 | R86: 10122 | S86: 2171 | AD86: 74 | AM86: 0 | AN86: 0 | AT86: =IF(AQ86=SUM(AN73:AN1172),NA(),IF(AQ86<>0,IF((AT85-B85)*(1+alloc1*Simulator!E86+alloc2*Simulator!F86+alloc3*Simulator!H86+alloc4*Simulator!J86+alloc5*Simulator!M86)<0,NA(),(AT85-B85)*(1+alloc1*Simulator!E86+alloc2*Simulator!F86+alloc3*Simulator!H86+alloc4*Simulator!J86+alloc5*Simulator!M86)),NA())) ->  | AV86: 543.1894824 | AX86: 1371.095205 | AZ86: 500.3972072 | BB86: 100.8938277
A87: 75 | B87: 1578.245217 | D87: 0.05 | E87: 0.05 | F87: 0.06197768877 | G87: 0.06197768877 | H87: 0.2115933262 | I87: 0.2115933262 | J87: -0.0884689936 | K87: -0.0884689936 | L87: 0.315114772 | M87: 0.315114772 | O87: no funds | P87: 28436 | Q87: 33640 | R87: 9227 | S87: 2855 | AD87: 75 | AM87: 0 | AN87: 0 | AT87: =IF(AQ87=SUM(AN74:AN1173),NA(),IF(AQ87<>0,IF((AT86-B86)*(1+alloc1*Simulator!E87+alloc2*Simulator!F87+alloc3*Simulator!H87+alloc4*Simulator!J87+alloc5*Simulator!M87)<0,NA(),(AT86-B86)*(1+alloc1*Simulator!E87+alloc2*Simulator!F87+alloc3*Simulator!H87+alloc4*Simulator!J87+alloc5*Simulator!M87)),NA())) ->  | AV87: 576.8551111 | AX87: 1661.2098 | AZ87: 456.1275698 | BB87: 132.6869632
A88: 76 | B88: 1679.126927 | D88: 0.05 | E88: 0.05 | F88: 0.06822910843 | G88: 0.06822910843 | H88: 0.2115096252 | I88: 0.2115096252 | J88: 0.2245238307 | K88: 0.2245238307 | L88: -0.3611547359 | M88: -0.3611547359 | O88: no funds | P88: 30376 | Q88: 40755 | R88: 11299 | S88: 1824 | AD88: 76 | AM88: 0 | AN88: 0 | AT88: =IF(AQ88=SUM(AN75:AN1174),NA(),IF(AQ88<>0,IF((AT87-B87)*(1+alloc1*Simulator!E88+alloc2*Simulator!F88+alloc3*Simulator!H88+alloc4*Simulator!J88+alloc5*Simulator!M88)<0,NA(),(AT87-B87)*(1+alloc1*Simulator!E88+alloc2*Simulator!F88+alloc3*Simulator!H88+alloc4*Simulator!J88+alloc5*Simulator!M88)),NA())) ->  | AV88: 616.213421 | AX88: 2012.571663 | AZ88: 558.5390791 | BB88: 84.76643802
A89: 77 | B89: 1785.535383 | D89: 0.05 | E89: 0.05 | F89: 0.08240523887 | G89: 0.08240523887 | H89: 0.1365718207 | I89: 0.1365718207 | J89: 0.3519357246 | K89: 0.3519357246 | L89: 0.301876655 | M89: 0.301876655 | O89: no funds | P89: 32879 | Q89: 46321 | R89: 15276 | S89: 2375 | AD89: 77 | AM89: 0 | AN89: 0 | AT89: =IF(AQ89=SUM(AN76:AN1175),NA(),IF(AQ89<>0,IF((AT88-B88)*(1+alloc1*Simulator!E89+alloc2*Simulator!F89+alloc3*Simulator!H89+alloc4*Simulator!J89+alloc5*Simulator!M89)<0,NA(),(AT88-B88)*(1+alloc1*Simulator!E89+alloc2*Simulator!F89+alloc3*Simulator!H89+alloc4*Simulator!J89+alloc5*Simulator!M89)),NA())) ->  | AV89: 666.9926351 | AX89: 2287.432239 | AZ89: 755.1089346 | BB89: 110.3554468
A90: 78 | B90: 1897.658345 | D90: 0.05 | E90: 0.05 | F90: 0.08036925827 | G90: 0.08036925827 | H90: 0.2173992872 | I90: 0.2173992872 | J90: -0.188807697 | K90: -0.188807697 | L90: 0.5311574074 | M90: 0.5311574074 | O90: no funds | P90: 35521 | Q90: 56391 | R90: 12392 | S90: 3636 | AD90: 78 | AM90: 0 | AN90: 0 | AR90: =IF(AQ90=SUM(AN77:AN1176),NA(),IF(AQ90<>0,IF(SUM(O90:S90)<0,NA(),SUM(O90:S90)),NA())) ->  | AT90: =IF(AQ90=SUM(AN77:AN1176),NA(),IF(AQ90<>0,IF((AT89-B89)*(1+alloc1*Simulator!E90+alloc2*Simulator!F90+alloc3*Simulator!H90+alloc4*Simulator!J90+alloc5*Simulator!M90)<0,NA(),(AT89-B89)*(1+alloc1*Simulator!E90+alloc2*Simulator!F90+alloc3*Simulator!H90+alloc4*Simulator!J90+alloc5*Simulator!M90)),NA())) ->  | AV90: 720.5983385 | AX90: 2784.718377 | AZ90: 612.5385557 | BB90: 168.9715598
A91: 79 | B91: 2015.673158 | D91: 0.05 | E91: 0.05 | F91: 0.05310219951 | G91: 0.05310219951 | H91: 0.01551649838 | I91: 0.01551649838 | J91: 0.1565652933 | K91: 0.1565652933 | L91: 0.3472689159 | M91: 0.3472689159 | O91: no funds | P91: 37407 | Q91: 57266 | R91: 14332 | S91: 4899 | AD91: 79 | AM91: 0 | AN91: 0 | AT91: =IF(AQ91=SUM(AN78:AN1177),NA(),IF(AQ91<>0,IF((AT90-B90)*(1+alloc1*Simulator!E91+alloc2*Simulator!F91+alloc3*Simulator!H91+alloc4*Simulator!J91+alloc5*Simulator!M91)<0,NA(),(AT90-B90)*(1+alloc1*Simulator!E91+alloc2*Simulator!F91+alloc3*Simulator!H91+alloc4*Simulator!J91+alloc5*Simulator!M91)),NA())) ->  | AV91: 758.8636952 | AX91: 2827.927455 | AZ91: 708.4408343 | BB91: 227.6501302
A92: 80 | B92: 2139.743371 | D92: 0.05 | E92: 0.05 | F92: 0.08608887545 | G92: 0.08608887545 | H92: 0.05664240104 | I92: 0.05664240104 | J92: 0.1538786078 | K92: 0.1538786078 | L92: -0.4122967157 | M92: -0.4122967157 | O92: no funds | P92: 40627 | Q92: 60510 | R92: 16537 | S92: 2879 | AD92: 80 | AM92: 0 | AN92: 0 | AT92: =IF(AQ92=SUM(AN79:AN1178),NA(),IF(AQ92<>0,IF((AT91-B91)*(1+alloc1*Simulator!E92+alloc2*Simulator!F92+alloc3*Simulator!H92+alloc4*Simulator!J92+alloc5*Simulator!M92)<0,NA(),(AT91-B91)*(1+alloc1*Simulator!E92+alloc2*Simulator!F92+alloc3*Simulator!H92+alloc4*Simulator!J92+alloc5*Simulator!M92)),NA())) ->  | AV92: 824.1934174 | AX92: 2988.108056 | AZ92: 817.4547237 | BB92: 133.7907292
A93: 81 | B93: 2270.014836 | D93: 0.05 | E93: 0.05 | F93: 0.05449685549 | G93: 0.05449685549 | H93: 0.1553511166 | I93: 0.1553511166 | J93: -0.1886195956 | K93: -0.1886195956 | L93: 0.1497772775 | M93: 0.1497772775 | O93: no funds | P93: 42841 | Q93: 69910 | R93: 13418 | S93: 3310 | AD93: 81 | AM93: 0 | AN93: 0 | AT93: =IF(AQ93=SUM(AN80:AN1179),NA(),IF(AQ93<>0,IF((AT92-B92)*(1+alloc1*Simulator!E93+alloc2*Simulator!F93+alloc3*Simulator!H93+alloc4*Simulator!J93+alloc5*Simulator!M93)<0,NA(),(AT92-B92)*(1+alloc1*Simulator!E93+alloc2*Simulator!F93+alloc3*Simulator!H93+alloc4*Simulator!J93+alloc5*Simulator!M93)),NA())) ->  | AV93: 869.109367 | AX93: 3452.313979 | AZ93: 663.2667443 | BB93: 153.8295404
A94: 82 | B94: 2406.611218 | D94: 0.05 | E94: 0.05 | F94: 0.1114464922 | G94: 0.1114464922 | H94: 0.03056310091 | I94: 0.03056310091 | J94: 0.2453345335 | K94: 0.2453345335 | L94: 0.2640207619 | M94: 0.2640207619 | O94: no funds | P94: 47615 | Q94: 72047 | R94: 16710 | S94: 4184 | AD94: 82 | AM94: 0 | AN94: 0 | AT94: =IF(AQ94=SUM(AN81:AN1180),NA(),IF(AQ94<>0,IF((AT93-B93)*(1+alloc1*Simulator!E94+alloc2*Simulator!F94+alloc3*Simulator!H94+alloc4*Simulator!J94+alloc5*Simulator!M94)<0,NA(),(AT93-B93)*(1+alloc1*Simulator!E94+alloc2*Simulator!F94+alloc3*Simulator!H94+alloc4*Simulator!J94+alloc5*Simulator!M94)),NA())) ->  | AV94: 965.9685572 | AX94: 3557.8274 | AZ94: 825.9889815 | BB94: 194.4437328
A95: 83 | B95: 2549.62883 | D95: 0.05 | E95: 0.05 | F95: 0.05725780594 | G95: 0.05725780594 | H95: 0.09624124451 | I95: 0.09624124451 | J95: 0.2873916205 | K95: 0.2873916205 | L95: 0.02243176344 | M95: 0.02243176344 | O95: no funds | P95: 50341 | Q95: 78981 | R95: 21512 | S95: 4278 | AD95: 83 | AM95: 0 | AN95: 0 | AT95: =IF(AQ95=SUM(AN82:AN1181),NA(),IF(AQ95<>0,IF((AT94-B94)*(1+alloc1*Simulator!E95+alloc2*Simulator!F95+alloc3*Simulator!H95+alloc4*Simulator!J95+alloc5*Simulator!M95)<0,NA(),(AT94-B94)*(1+alloc1*Simulator!E95+alloc2*Simulator!F95+alloc3*Simulator!H95+alloc4*Simulator!J95+alloc5*Simulator!M95)),NA())) ->  | AV95: 1021.277797 | AX95: 3900.237137 | AZ95: 1063.371293 | BB95: 198.8054486
A96: 84 | B96: 2699.130723 | D96: 0.05 | E96: 0.05 | F96: 0.04932325983 | G96: 0.04932325983 | H96: 0.1234398094 | I96: 0.1234398094 | J96: 0.3836530742 | K96: 0.3836530742 | L96: 0.08904990309 | M96: 0.08904990309 | O96: no funds | P96: 52824 | Q96: 88730 | R96: 29765 | S96: 4659 | AD96: 84 | AM96: 0 | AN96: 0 | AT96: =IF(AQ96=SUM(AN83:AN1182),NA(),IF(AQ96<>0,IF((AT95-B95)*(1+alloc1*Simulator!E96+alloc2*Simulator!F96+alloc3*Simulator!H96+alloc4*Simulator!J96+alloc5*Simulator!M96)<0,NA(),(AT95-B95)*(1+alloc1*Simulator!E96+alloc2*Simulator!F96+alloc3*Simulator!H96+alloc4*Simulator!J96+alloc5*Simulator!M96)),NA())) ->  | AV96: 1071.650548 | AX96: 4381.681665 | AZ96: 1471.336959 | BB96: 216.5090546
A97: 85 | B97: 2855.139926 | D97: 0.05 | E97: 0.05 | F97: 0.1318814602 | G97: 0.1318814602 | H97: 0.1069537577 | I97: 0.1069537577 | J97: 0.0480056237 | K97: 0.0480056237 | L97: 0.2349061839 | M97: 0.2349061839 | O97: no funds | P97: 59791 | Q97: 98220 | R97: 31194 | S97: 5753 | AD97: 85 | AM97: 0 | AN97: 0 | AT97: =IF(AQ97=SUM(AN84:AN1183),NA(),IF(AQ97<>0,IF((AT96-B96)*(1+alloc1*Simulator!E97+alloc2*Simulator!F97+alloc3*Simulator!H97+alloc4*Simulator!J97+alloc5*Simulator!M97)<0,NA(),(AT96-B96)*(1+alloc1*Simulator!E97+alloc2*Simulator!F97+alloc3*Simulator!H97+alloc4*Simulator!J97+alloc5*Simulator!M97)),NA())) ->  | AV97: 1212.981387 | AX97: 4850.318984 | AZ97: 1541.969408 | BB97: 267.3683703
A98: 86 | B98: 3017.631739 | D98: 0.05 | E98: 0.05 | F98: 0.09670839316 | G98: 0.09670839316 | H98: 0.1322823186 | I98: 0.1322823186 | J98: 0.1014647744 | K98: 0.1014647744 | L98: -0.3920597621 | M98: -0.3920597621 | O98: no funds | P98: 65573 | Q98: 111213 | R98: 34359 | S98: 3497 | AD98: 86 | AM98: 0 | AN98: 0 | AT98: =IF(AQ98=SUM(AN85:AN1184),NA(),IF(AQ98<>0,IF((AT97-B97)*(1+alloc1*Simulator!E98+alloc2*Simulator!F98+alloc3*Simulator!H98+alloc4*Simulator!J98+alloc5*Simulator!M98)<0,NA(),(AT97-B97)*(1+alloc1*Simulator!E98+alloc2*Simulator!F98+alloc3*Simulator!H98+alloc4*Simulator!J98+alloc5*Simulator!M98)),NA())) ->  | AV98: 1330.286867 | AX98: 5491.930426 | AZ98: 1698.424986 | BB98: 162.5439907
A99: 87 | B99: 3186.52496 | D99: 0.05 | E99: 0.05 | F99: 0.07386090923 | G99: 0.07386090923 | H99: 0.1739814467 | I99: 0.1739814467 | J99: 0.2102478293 | K99: 0.2102478293 | L99: 0.2166425131 | M99: 0.2166425131 | O99: no funds | P99: 70416 | Q99: 130562 | R99: 41583 | S99: 4255 | AD99: 87 | AM99: 0 | AN99: 0 | AT99: =IF(AQ99=SUM(AN86:AN1185),NA(),IF(AQ99<>0,IF((AT98-B98)*(1+alloc1*Simulator!E99+alloc2*Simulator!F99+alloc3*Simulator!H99+alloc4*Simulator!J99+alloc5*Simulator!M99)<0,NA(),(AT98-B98)*(1+alloc1*Simulator!E99+alloc2*Simulator!F99+alloc3*Simulator!H99+alloc4*Simulator!J99+alloc5*Simulator!M99)),NA())) ->  | AV99: 1428.543065 | AX99: 6447.424426 | AZ99: 2055.515152 | BB99: 197.7579293
A100: 88 | B100: 3361.671906 | D100: 0.05 | E100: 0.05 | F100: 0.06828170783 | G100: 0.06828170783 | H100: 0.09520981537 | I100: 0.09520981537 | J100: 0.0791157823 | K100: 0.0791157823 | L100: -0.2352769763 | M100: -0.2352769763 | O100: no funds | P100: 75224 | Q100: 142993 | R100: 44873 | S100: 3254 | AD100: 88 | AM100: 0 | AN100: 0 | AT100: =IF(AQ100=SUM(AN87:AN1186),NA(),IF(AQ100<>0,IF((AT99-B99)*(1+alloc1*Simulator!E100+alloc2*Simulator!F100+alloc3*Simulator!H100+alloc4*Simulator!J100+alloc5*Simulator!M100)<0,NA(),(AT99-B99)*(1+alloc1*Simulator!E100+alloc2*Simulator!F100+alloc3*Simulator!H100+alloc4*Simulator!J100+alloc5*Simulator!M100)),NA())) ->  | AV100: 1526.086425 | AX100: 7061.282516 | AZ100: 2218.138841 | BB100: 151.2300416
A101: 89 | B101: 3542.847103 | D101: 0.05 | E101: 0.05 | F101: 0.09520617151 | G101: 0.09520617151 | H101: -0.003856161444 | I101: -0.003856161444 | J101: 0.0353985978 | K101: 0.0353985978 | L101: 0.5752378144 | M101: 0.5752378144 | O101: no funds | P101: 82386 | Q101: 142442 | R101: 46461 | S101: 5126 | AD101: 89 | AM101: 0 | AN101: 0 | AT101: =IF(AQ101=SUM(AN88:AN1187),NA(),IF(AQ101<>0,IF((AT100-B100)*(1+alloc1*Simulator!E101+alloc2*Simulator!F101+alloc3*Simulator!H101+alloc4*Simulator!J101+alloc5*Simulator!M101)<0,NA(),(AT100-B100)*(1+alloc1*Simulator!E101+alloc2*Simulator!F101+alloc3*Simulator!H101+alloc4*Simulator!J101+alloc5*Simulator!M101)),NA())) ->  | AV101: 1671.379271 | AX101: 7034.05307 | AZ101: 2296.657846 | BB101: 238.2232803
A102: 90 | B102: 3729.73446 | D102: 0.05 | E102: 0.05 | F102: 0.1466785525 | G102: 0.1466785525 | H102: -0.07314393699 | I102: -0.07314393699 | J102: -0.3122481848 | K102: -0.3122481848 | L102: -0.2239547429 | M102: -0.2239547429 | O102: no funds | P102: 94470 | Q102: 132023 | R102: 31954 | S102: 3978 | AD102: 90 | AM102: 0 | AN102: 0 | AT102: =IF(AQ102=SUM(AN89:AN1188),NA(),IF(AQ102<>0,IF((AT101-B101)*(1+alloc1*Simulator!E102+alloc2*Simulator!F102+alloc3*Simulator!H102+alloc4*Simulator!J102+alloc5*Simulator!M102)<0,NA(),(AT101-B101)*(1+alloc1*Simulator!E102+alloc2*Simulator!F102+alloc3*Simulator!H102+alloc4*Simulator!J102+alloc5*Simulator!M102)),NA())) ->  | AV102: 1916.534763 | AX102: 6519.554736 | AZ102: 1579.530602 | BB102: 184.8720468
A103: 91 | B103: 3921.912765 | D103: 0.05 | E103: 0.05 | F103: 0.1028327683 | G103: 0.1028327683 | H103: -0.04076472217 | I103: -0.04076472217 | J103: 0.1042952166 | K103: 0.1042952166 | L103: -0.01765940017 | M103: -0.01765940017 | O103: no funds | P103: 104185 | Q103: 126641 | R103: 35287 | S103: 3908 | AD103: 91 | AM103: 0 | AN103: 0 | AT103: =IF(AQ103=SUM(AN90:AN1189),NA(),IF(AQ103<>0,IF((AT102-B102)*(1+alloc1*Simulator!E103+alloc2*Simulator!F103+alloc3*Simulator!H103+alloc4*Simulator!J103+alloc5*Simulator!M103)<0,NA(),(AT102-B102)*(1+alloc1*Simulator!E103+alloc2*Simulator!F103+alloc3*Simulator!H103+alloc4*Simulator!J103+alloc5*Simulator!M103)),NA())) ->  | AV103: 2113.617338 | AX103: 6253.786898 | AZ103: 1744.268089 | BB103: 181.6073173
A104: 92 | B104: 4118.839288 | D104: 0.05 | E104: 0.05 | F104: 0.1123666201 | G104: 0.1123666201 | H104: 0.006957062196 | I104: 0.006957062196 | J104: 0.06418794302 | K104: 0.06418794302 | L104: -0.4561218182 | M104: -0.4561218182 | O104: no funds | P104: 115892 | Q104: 127522 | R104: 37552 | S104: 2125 | AD104: 92 | AM104: 0 | AN104: 0 | AT104: =IF(AQ104=SUM(AN91:AN1190),NA(),IF(AQ104<>0,IF((AT103-B103)*(1+alloc1*Simulator!E104+alloc2*Simulator!F104+alloc3*Simulator!H104+alloc4*Simulator!J104+alloc5*Simulator!M104)<0,NA(),(AT103-B103)*(1+alloc1*Simulator!E104+alloc2*Simulator!F104+alloc3*Simulator!H104+alloc4*Simulator!J104+alloc5*Simulator!M104)),NA())) ->  | AV104: 2351.117375 | AX104: 6297.294883 | AZ104: 1856.22907 | BB104: 98.77225755
A105: 93 | B105: 4319.831284 | D105: 0.05 | E105: 0.05 | F105: 0.1064660595 | G105: 0.1064660595 | H105: 0.06671667243 | I105: 0.06671667243 | J105: 0.06786275415 | K105: 0.06786275415 | L105: 0.3253911873 | M105: 0.3253911873 | O105: no funds | P105: 128231 | Q105: 136030 | R105: 40100 | S105: 2816 | AD105: 93 | AM105: 0 | AN105: 0 | AT105: =IF(AQ105=SUM(AN92:AN1191),NA(),IF(AQ105<>0,IF((AT104-B104)*(1+alloc1*Simulator!E105+alloc2*Simulator!F105+alloc3*Simulator!H105+alloc4*Simulator!J105+alloc5*Simulator!M105)<0,NA(),(AT104-B104)*(1+alloc1*Simulator!E105+alloc2*Simulator!F105+alloc3*Simulator!H105+alloc4*Simulator!J105+alloc5*Simulator!M105)),NA())) ->  | AV105: 2601.431577 | AX105: 6717.429442 | AZ105: 1982.197887 | BB105: 130.9118797
A106: 94 | B106: 4524.045125 | D106: 0.05 | E106: 0.05 | F106: 0.06619725385 | G106: 0.06619725385 | H106: 0.1319324694 | I106: 0.1319324694 | J106: 0.1108745515 | K106: 0.1108745515 | L106: 0.3037813501 | M106: 0.3037813501 | O106: no funds | P106: 136720 | Q106: 153977 | R106: 44546 | S106: 3671 | AD106: 94 | AM106: 0 | AN106: 0 | AT106: =IF(AQ106=SUM(AN93:AN1192),NA(),IF(AQ106<>0,IF((AT105-B105)*(1+alloc1*Simulator!E106+alloc2*Simulator!F106+alloc3*Simulator!H106+alloc4*Simulator!J106+alloc5*Simulator!M106)<0,NA(),(AT105-B105)*(1+alloc1*Simulator!E106+alloc2*Simulator!F106+alloc3*Simulator!H106+alloc4*Simulator!J106+alloc5*Simulator!M106)),NA())) ->  | AV106: 2773.639204 | AX106: 7603.676497 | AZ106: 2201.973188 | BB106: 170.6804673
A107: 95 | B107: 4730.452807 | D107: 0.05 | E107: 0.05 | F107: 0.1137382421 | G107: 0.1137382421 | H107: 0.1019380123 | I107: 0.1019380123 | J107: 0.2950035997 | K107: 0.2950035997 | L107: 0.4271178404 | M107: 0.4271178404 | O107: no funds | P107: 152270 | Q107: 169673 | R107: 57687 | S107: 5239 | AD107: 95 | AM107: 0 | AN107: 0 | AT107: =IF(AQ107=SUM(AN94:AN1193),NA(),IF(AQ107<>0,IF((AT106-B106)*(1+alloc1*Simulator!E107+alloc2*Simulator!F107+alloc3*Simulator!H107+alloc4*Simulator!J107+alloc5*Simulator!M107)<0,NA(),(AT106-B106)*(1+alloc1*Simulator!E107+alloc2*Simulator!F107+alloc3*Simulator!H107+alloc4*Simulator!J107+alloc5*Simulator!M107)),NA())) ->  | AV107: 3089.108051 | AX107: 8378.780165 | AZ107: 2851.563205 | BB107: 243.5811398
A108: 96 | B108: =(prepen1*(1+rinf)^A108/100000)-(pension/100000)-(income*(1+incrate)^A108/100000) -> 4937.81551 | D108: 0.05 | E108: 0.05 | F108: 0.1159723593 | G108: 0.1159723593 | H108: 0.2887416478 | I108: 0.2887416478 | J108: 0.1449165756 | K108: 0.1449165756 | L108: -0.3384175289 | M108: -0.3384175289 | O108: no funds | P108: 169929 | Q108: 218665 | R108: 66047 | S108: 3466 | AD108: 96 | AM108: 0 | AN108: 0 | AT108: =IF(AQ108=SUM(AN95:AN1194),NA(),IF(AQ108<>0,IF((AT107-B107)*(1+alloc1*Simulator!E108+alloc2*Simulator!F108+alloc3*Simulator!H108+alloc4*Simulator!J108+alloc5*Simulator!M108)<0,NA(),(AT107-B107)*(1+alloc1*Simulator!E108+alloc2*Simulator!F108+alloc3*Simulator!H108+alloc4*Simulator!J108+alloc5*Simulator!M108)),NA())) ->  | AV108: 3447.3592 | AX108: 10798.08296 | AZ108: 3264.80198 | BB108: 161.1490124
A109: 97 | B109: =(prepen1*(1+rinf)^A109/100000)-(pension/100000)-(income*(1+incrate)^A109/100000) -> 5144.653878 | D109: =IF(E109<>"",E109,_min1) -> 0.05 | E109: 0.05 | F109: 0.08139567924 | G109: =IF(F109<>"",F109,NORMINV(RAND(),mean2,stdev2)) -> 0.08139567924 | H109: 0.0004028108799 | I109: =IF(H109<>"",H109,NORMINV(RAND(),mean3,stdev3)) -> 0.0004028108799 | J109: -0.04272927399 | K109: =IF(J109<>"",J109,NORMINV(RAND(),mean4,stdev4)) -> -0.04272927399 | L109: =IF(M109<>"",M109,NORMINV(RAND(),mean5,stdev5)) -> -0.06191007431 | M109: -0.06191007431 | O109: no funds | P109: 183760 | Q109: 218753 | R109: 63225 | S109: 3251 | AD109: 97 | AM109: 0 | AN109: 0 | AT109: =IF(AQ109=SUM(AN96:AN1195),NA(),IF(AQ109<>0,IF((AT108-B108)*(1+alloc1*Simulator!E109+alloc2*Simulator!F109+alloc3*Simulator!H109+alloc4*Simulator!J109+alloc5*Simulator!M109)<0,NA(),(AT108-B108)*(1+alloc1*Simulator!E109+alloc2*Simulator!F109+alloc3*Simulator!H109+alloc4*Simulator!J109+alloc5*Simulator!M109)),NA())) ->  | AV109: 3727.959343 | AX109: 10802.43254 | AZ109: 3125.299362 | BB109: 151.1722651
A110: 98 | B110: =(prepen1*(1+rinf)^A110/100000)-(pension/100000)-(income*(1+incrate)^A110/100000) -> 5349.214628 | D110: =IF(E110<>"",E110,_min1) -> 0.05 | E110: 0.05 | F110: 0.07172621057 | G110: =IF(F110<>"",F110,NORMINV(RAND(),mean2,stdev2)) -> 0.07172621057 | H110: 0.01773216414 | I110: =IF(H110<>"",H110,NORMINV(RAND(),mean3,stdev3)) -> 0.01773216414 | J110: 0.08411247362 | K110: =IF(J110<>"",J110,NORMINV(RAND(),mean4,stdev4)) -> 0.08411247362 | L110: =IF(M110<>"",M110,NORMINV(RAND(),mean5,stdev5)) -> -0.5516274324 | M110: -0.5516274324 | O110: no funds | P110: 196940 | Q110: 222632 | R110: 68543 | S110: 1458 | AD110: 98 | AM110: 0 | AN110: 0 | AT110: =IF(AQ110=SUM(AN97:AN1196),NA(),IF(AQ110<>0,IF((AT109-B109)*(1+alloc1*Simulator!E110+alloc2*Simulator!F110+alloc3*Simulator!H110+alloc4*Simulator!J110+alloc5*Simulator!M110)<0,NA(),(AT109-B109)*(1+alloc1*Simulator!E110+alloc2*Simulator!F110+alloc3*Simulator!H110+alloc4*Simulator!J110+alloc5*Simulator!M110)),NA())) ->  | AV110: 3995.35174 | AX110: 10993.98305 | AZ110: 3388.176022 | BB110: 67.78149663
A111: 99 | B111: =(prepen1*(1+rinf)^A111/100000)-(pension/100000)-(income*(1+incrate)^A111/100000) -> 5549.433082 | D111: =IF(E111<>"",E111,_min1) -> 0.05 | E111: 0.05 | F111: 0.05773091964 | G111: =IF(F111<>"",F111,NORMINV(RAND(),mean2,stdev2)) -> 0.05773091964 | H111: 0.07516706518 | I111: =IF(H111<>"",H111,NORMINV(RAND(),mean3,stdev3)) -> 0.07516706518 | J111: 0.1399553271 | K111: =IF(J111<>"",J111,NORMINV(RAND(),mean4,stdev4)) -> 0.1399553271 | L111: =IF(M111<>"",M111,NORMINV(RAND(),mean5,stdev5)) -> 0.5092327943 | M111: 0.5092327943 | O111: no funds | P111: 208310 | Q111: 239367 | R111: 78136 | S111: 2200 | AD111: 99 | AM111: 0 | AN111: 0 | AT111: =IF(AQ111=SUM(AN98:AN1197),NA(),IF(AQ111<>0,IF((AT110-B110)*(1+alloc1*Simulator!E111+alloc2*Simulator!F111+alloc3*Simulator!H111+alloc4*Simulator!J111+alloc5*Simulator!M111)<0,NA(),(AT110-B110)*(1+alloc1*Simulator!E111+alloc2*Simulator!F111+alloc3*Simulator!H111+alloc4*Simulator!J111+alloc5*Simulator!M111)),NA())) ->  | AV111: 4226.00707 | AX111: 11820.36849 | AZ111: 3862.369305 | BB111: 102.2980576

Sheet Example results

Sheet Read me whenever!
A1: Background and Motivation
A2: Mr. P V Subramanyam (subramoney.com) introduced the idea of retirement buckets and urged me to a build a calculator. When I looked around for
A3: what was available I first ound a terrific free version offered by ISG Planning (and stopped looking!)
A4: This simulator is inspired by and influenced by the free Investment Income Simulator available at | J4: ISG Planning
A5: That said the simulator has been bulit independently from the ground-up. Why do this when something is already available for free? I believe my version offers
A6: additional flexibility and features. These include:
A7: 1. an extra investment bucket with information on how long the initial allocation to bucket 1 will last.
A8: 2. a standard retirment calculator and comparison with the bucket stratergy
A9: 3. Choice of defining the volatility in each bucket
A10: 4. Choice of including annuity and additonal income
A11: Some useful features in the ISG version are not (yet!) available. There are also some differences. For example:
A12: a. Correlation among the different kind of stocks
A13: b. Dividends from stocks is not considered
A14: c. The exact nature of the Monte Carlo simulation used by ISG is not known. I have simply used random returns that obey a Normal distribution without any averaging
A15: Sometimes the random returns may not reflect historic market trends. As this is only a informative and practice tool I don't intende to change this unless there is interest from users
A16: d. Of course the ISG version is way more better looking and user friendly than mine. However I am not going to lose sleep over this.
A17: I made this calculator because I believe diversification (ie. Additional buckets) with a wide range in volatility maybe necessary to combat high inflation rates that prevail in India.
A19: Remember: This is a work in progress. I have tried this out several times to weed out errors. No guarantees can however be made that it is error free. If you find a bug kindly bring it to my notice.
A21: Is it correct to use software to predict market returns? Is the math behind this a proven one?
A22: I don't care! Forgive me for soudning a tad irresponsible. This is the only stand to take when there is no universal agreement on which model
A23: (Monte Carlo or Historical) to use for returns and which distribution to use or whether to use one at all!
A24: This is a practice tool and not a calculator. It models a situation with different volatilites and prepares you for handling your retirement corpus.
A25: The more times you play it the better you get. This is not a tool that claims to mimic market conditions. I don't think any toolmaker can make that claim
A26: The bottomline: My idea of making this calculator is to introduce a technique which if used properly might (only might) be a more
A27: efficient way of managing a retirement corpus. Is this suitable for everyone? Unfortunately no. Some experience in at least handling mutual fund investments maybe necessary.
A28: A financial planner with experience in handling retirment buckets would certainly help. Finding one is another matter
A31: Note on error: "You don't have enough funds in Bucket 5 to make this transfer! If didn't want to make a transfer please see the 'Notes' sheet!"
A32: If you got this error and didn't want to make a transfer it means that the returns next year will wipe out the balance in the concerned bucket!
A33: As of now you don’t have a choice but to start all over again. You could of course transfer the balance and proceed. The error will go away but
A34: that is like predicting the future and hence cheating!
